{"text_format":"1","workbook":"xlsx","n_sheets":53,"sheets":["modList07","modList05","Лог обновления","Титульный","Форма 1.4.1","Форма 1.0.1 | Форма 1.4.2","Форма 1.4.2","Форма 1.5","Форма 1.0.1 | Форма 1.6","Форма 1.6","Форма 1.0.2","Сведения об изменении","Комментарии","modProv","modReestr","AllSheetsInThisWorkbook","modCheckCyan","modInfo","TEHSHEET","modfrmSelectData","modList06","modList01","modList08","et_union_hor","et_union_vert","modList00","modList02","modList03","modList04","modList09","modHTTP","modfrmRegion","MR_LIST","REESTR_VT","REESTR_VED","modfrmReestrObj","DataOrg","modfrmReestr","modUpdTemplMain","REESTR_ORG","modClassifierValidate","modHyp","modfrmDateChoose","modComm","modThisWorkbook","REESTR_MO","REESTR_MO_FILTER","modfrmReestrMR","modServiceModule","modfrmCheckUpdates","REESTR_DS","REESTR_CHS","REESTR_LINK"],"not_rendered":{"charts":0,"images":8,"macros":0,"external_links":0,"defined_names":283,"comments":7,"pivot_tables":0},"unopened":[],"bounds":{"document_bytes":16777216,"sheet_cells":100000,"rows_first":2000,"rows_last":500,"rows_between":2000,"halvings":0,"cell_chars":16384,"cell_head_chars":4096},"cells_cut":0,"cells_raw":0,"read":"whole","date_system":"1900"}

{"sheet":"modList07","index":0,"n_rows":0,"n_cols":0,"rows_kept":0,"cut":false,"hidden":true,"merged":[]}

{"sheet":"modList05","index":1,"n_rows":0,"n_cols":0,"rows_kept":0,"cut":false,"hidden":true,"merged":[]}

{"sheet":"Лог обновления","index":2,"n_rows":21,"n_cols":3,"rows_kept":21,"cut":false,"hidden":true,"merged":[]}
["Дата/Время","Сообщение","Статус"]
["2019-04-18T08:41:34","Проверка доступных обновлений...","Информация"]
["2019-04-18T08:41:35","Доступно обновление до версии 1.0.3","Информация"]
["2019-04-18T08:41:35","Описание изменений: Версия 1.0.3\n1. Исправление формулы расчета показателя 'Доля расходов, % (от суммы расходов по указанной статье)' листа 'Форма 1.4.2'\n2. Корректировка ограничений пункта 'Среднесписочная численность основного производственного персонала' листа 'Форма 1.4.1'.\n\nВерсия 1.0.2\n1. Корректировка формулы пункта 'Себестоимость производимых товаров (оказываемых услуг) по регулируемому виду деятельности' листа 'Форма 1.4.1'.\n\nВерсия 1.0.1\n1. Исправление отображения листа 'Форма 1.6' при отсутствии у организации инвестиционной программы.\n","Информация"]
["2019-04-18T08:41:35","Размер файла обновления: 345600 байт","Информация"]
["2019-04-18T08:41:36","Подготовка к обновлению...","Информация"]
["2019-04-18T08:41:39","Сохранение файла резервной копии: D:\\документы\\downloads\\787.BKP.xlsb","Информация"]
["2019-04-18T08:41:40","Резервная копия создана: D:\\документы\\downloads\\787.BKP.xlsb","Информация"]
["2019-04-18T08:41:40","Создание книги для установки обновлений...","Информация"]
["2019-04-18T08:41:41","Файл обновления загружен: D:\\документы\\downloads\\UPDATE.FAS.JKH.OPEN.INFO.BALANCE.GVS.TO.1.0.3.29.xls","Информация"]
["2019-04-30T09:26:59","Проверка доступных обновлений...","Информация"]
["2019-04-30T09:27:04","Проверка доступных обновлений...","Информация"]
["2019-04-30T09:27:05","Нет доступных обновлений для отчёта с кодом FAS.JKH.OPEN.INFO.BALANCE.GVS!","Информация"]
["2019-04-30T09:27:21","Проверка доступных обновлений...","Информация"]
["2019-04-30T09:27:23","Нет доступных обновлений для отчёта с кодом FAS.JKH.OPEN.INFO.BALANCE.GVS!","Информация"]
["2019-04-30T09:29:55","Проверка доступных обновлений...","Информация"]
["2019-04-30T09:29:56","Нет доступных обновлений для отчёта с кодом FAS.JKH.OPEN.INFO.BALANCE.GVS!","Информация"]
["2019-04-30T09:32:09","Проверка доступных обновлений...","Информация"]
["2019-04-30T09:32:12","Нет доступных обновлений для отчёта с кодом FAS.JKH.OPEN.INFO.BALANCE.GVS!","Информация"]
["2019-04-30T13:28:09","Проверка доступных обновлений...","Информация"]
["2019-04-30T13:28:11","Нет доступных обновлений для отчёта с кодом FAS.JKH.OPEN.INFO.BALANCE.GVS!","Информация"]

{"sheet":"Титульный","index":3,"n_rows":47,"n_cols":6,"rows_kept":47,"cut":false,"hidden":false,"merged":[[4,4,4,5]]}
[null,null,null,null,null,28795512]
[]
[]
[null,null,null,null,null,{"$f":"version","v":{"$error":"#REF!"}}]
[null,null,null,null,"Информация о показателях финансово-хозяйственной деятельности, об основных потребительских характеристиках регулируемых товаров и услуг, об инвестиционных программах регулируемой организации в сфере горячего водоснабжения"]
[]
[null,null,null,null,"Субъект РФ","Ивановская область"]
[]
[null,null,null,null,"Публикация2","На сайте регулирующего органа"]
[]
[null,null,null,null,"Отсутствует Интернет в границах территории МО, где организация осуществляет регулируемые виды деятельности","нет"]
[]
[null,null,null,null,"Тип отчета","первичное раскрытие информации"]
[null,null,null,null,"Дата внесения изменений в информацию, подлежащую раскрытию","30.04.2019"]
[]
[null,null,null,null,"Применяется дифференциация тарифа по централизованным системам горячего водоснабжения?"]
[null,null,null,null,"Информация по скольким централизованным системам горячего водоснабжения будет заполнена в шаблоне?"]
[]
[]
[null,null,2018,null,"Отчётный период (год)",2018]
[]
[]
[null,null,null,null,"Является ли данное юридическое лицо подразделением (филиалом) другой организации","нет"]
[]
[]
[null,null,null,null,"Наименование организации","АО \"ИГТСК\""]
[null,null,null,null,"Наименование филиала"]
[null,null,null,null,"ИНН","3702733445"]
[null,null,null,null,"КПП","370201001"]
[null,null,null,null,"Вид деятельности"]
[]
[null,null,null,null,"Регулируемая организация осуществляет сдачу годового бухгалтерского баланса в налоговые органы","да"]
[null,null,null,null,"Дата направления годового бухгалтерского баланса в налоговые органы","04.03.2019"]
[]
[null,null,null,null,"Превышает ли выручка от регулируемой деятельности 80% совокупной выручки за отчетный год","да"]
[]
[null,null,null,null,"Организация выполняет инвестиционную программу","нет"]
[null,null,null,null,"Дифференциация по территориям и системам коммунальной инфраструктуры применяется для инвестиционных программ","нет"]
[]
[null,null,null,null,"Почтовый адрес регулируемой организации","153021 г. Иваново, ул. Рабфаковская, д.2-А"]
[null,null,null,null,"Фамилия, имя, отчество руководителя","Рябов А.А."]
[]
[null,null,null,null,null,"Ответственный за составление формы"]
[null,null,null,null,"Фамилия, имя, отчество","Гудков И.В."]
[null,null,null,null,"Должность","заместитель генерального директора"]
[null,null,null,null,"(код) номер телефона","8-(4932)59-28-13"]
[null,null,null,null,"e-mail","os@igtsk.ru"]

{"sheet":"Форма 1.4.1","index":4,"n_rows":68,"n_cols":18,"rows_kept":68,"cut":false,"hidden":false,"merged":[[42,4,43,4],[42,5,43,5],[8,3,8,5],[11,9,13,9],[63,4,63,6],[12,4,13,4],[12,3,13,3],[12,5,13,5],[11,3,11,6],[37,3,38,3],[37,5,38,5],[39,3,40,3],[39,5,40,5],[42,3,43,3]]}
[null,null,null,null,null,null,4,5,6]
[null,null,null,null,null,"тыс. руб.",null,null,null,"Указываются прочие расходы, которые подлежат отнесению на регулируемые виды деятельности в соответствии с законодательством в сфере водоснабжения и водоотведения."]
[]
[null,null,null,null,null,"%",null,null,null,"Указывается показатель использования по производственному объекту как процент объем перекачки по отношению к пиковому дню отчетного года."]
[]
[]
[null,null,null,null,null,null,null,null,null,4]
[]
[null,null,null,"Информация об основных показателях финансово-хозяйственной деятельности регулируемой организации, включая структуру основных производственных затрат (в части регулируемого вида деятельности)"]
[]
[null,null,null,null,null,null,22,23,24]
[null,null,null,"Параметры формы",null,null,null,null,null,"Описание параметров формы"]
[null,null,null,"№ п/п","Наименование параметра","Единица измерения","Вид деятельности:\r\n  - Горячее водоснабжение\r\n\r\nТерритория оказания услуг:\r\n  - без дифференциации\r\n\r\nЦентрализованная система горячего водоснабжения:\r\n  - открытая система","Вид деятельности:\r\n  - Горячее водоснабжение\r\n\r\nТерритория оказания услуг:\r\n  - без дифференциации\r\n\r\nЦентрализованная система горячего водоснабжения:\r\n  - закрытая система в системе теплоснабжения от ЗАО \"УП ЖКХ\"","Вид деятельности:\r\n  - Горячее водоснабжение\r\n\r\nТерритория оказания услуг:\r\n  - без дифференциации\r\n\r\nЦентрализованная система горячего водоснабжения:\r\n  - закрытая система кроме системы теплоснабжения от ЗАО \"УП ЖКХ\""]
[null,null,null,null,null,null,"Информация","Информация","Информация"]
[null,null,null,"1","2","3",{"$f":"G1","v":4},{"$f":"H1","v":5},{"$f":"I1","v":6}]
[null,null,null,"1","Дата сдачи годового бухгалтерского баланса в налоговые органы","х",{"$f":"IF(buhg_flag=\"да\",IF(dateBuhg=\"\",\"Не указана\",dateBuhg),\"Не осуществлялась\")","v":"04.03.2019"},{"$f":"IF(buhg_flag=\"да\",IF(dateBuhg=\"\",\"Не указана\",dateBuhg),\"Не осуществлялась\")","v":"04.03.2019"},{"$f":"IF(buhg_flag=\"да\",IF(dateBuhg=\"\",\"Не указана\",dateBuhg),\"Не осуществлялась\")","v":"04.03.2019"},"Указывается календарная дата сдачи бухгалтерского баланса в налоговые органы в случае, если организация сдает бухгалтерский баланс в налоговые органы по регулируемому виду деятельности в сфере горячего водоснабжения, в отношении которого размещаются данные.\nДата указывается в виде «ДД.ММ.ГГГГ»."]
[null,null,null,"2","Выручка от регулируемой деятельности по виду деятельности","тыс. руб.",388657.530816724,4054.1943787241698,76887.090041839896,"Указывается выручка от регулируемого вида деятельности в сфере горячего водоснабжения."]
[null,null,null,"3","Себестоимость производимых товаров (оказываемых услуг) по регулируемому виду деятельности, включая:","тыс. руб.",{"$f":"SUM(G19:G23,G26:G32,G35,G38,G40,G42)","v":388657.530816724},{"$f":"SUM(H19:H23,H26:H32,H35,H38,H40,H42)","v":4054.1943787241698},{"$f":"SUM(I19:I23,I26:I32,I35,I38,I40,I42)","v":76887.090041839896},"Указывается суммарная себестоимость производимых товаров."]
[null,null,null,"3.1","Расходы на покупаемую тепловую энергию (мощность), используемую для горячего водоснабжения","тыс. руб.",{"$f":"G17-G21","v":297014.83081672399},{"$f":"H17-H21","v":2944.1543787241699},{"$f":"I17-I21","v":69918.9660418399}]
[null,null,null,"3.2","Расходы на тепловую энергию, производимую с применением собственных источников и используемую для горячего водоснабжения","тыс. руб.",0,0,0]
[null,null,null,"3.3","Расходы на покупаемую холодную воду, используемую для горячего водоснабжения","тыс. руб.",91642.7,1110.04,6968.1239999999998]
[null,null,null,"3.4","Расходы на холодную воду, получаемую с применением собственных источников водозабора (скважин) и используемую для горячего водоснабжения","тыс. руб.",0,0,0]
[null,null,null,"3.5","Расходы на покупаемую электрическую энергию (мощность), используемую в технологическом процессе:","тыс. руб.",0,0,0]
[null,null,null,"3.5.1","Средневзвешенная стоимость 1 кВт.ч (с учетом мощности)","руб.",0,0,0]
[null,null,null,"3.5.2","Объем приобретения электрической энергии","тыс. кВт·ч",0,0,0]
[null,null,null,"3.6","Расходы на оплату труда основного производственного персонала","тыс. руб.",0,0,0]
[null,null,null,"3.7","Отчисления на социальные нужды основного производственного персонала","тыс. руб.",0,0,0]
[null,null,null,"3.8","Расходы на оплату труда административно-управленческого персонала","тыс. руб.",0,0,0]
[null,null,null,"3.9","Отчисления на социальные   нужды административно-управленческого персонала",null,0,0,0]
[null,null,null,"3.10","Расходы на амортизацию основных производственных средств","тыс. руб.",0,0,0]
[null,null,null,"3.11","Расходы на аренду имущества, используемого для осуществления регулируемого вида деятельности","тыс. руб.",0,0,0]
[null,null,null,"3.12","Общепроизводственные расходы, в том числе:","тыс. руб.",0,0,0,"Указывается общая сумма общепроизводственных расходов."]
[null,null,null,"3.12.1","Расходы на текущий ремонт","тыс. руб.",0,0,0,"Указываются расходы на текущий ремонт, отнесенные к общепроизводственным расходам."]
[null,null,null,"3.12.2","Расходы на капитальный ремонт","тыс. руб.",0,0,0,"Указываются расходы на капитальный ремонт, отнесенные к общепроизводственным расходам"]
[null,null,null,"3.13","Общехозяйственные расходы, в том числе:","тыс. руб.",0,0,0,"Указывается общая сумма общехозяйственных расходов."]
[null,null,null,"3.13.1","Расходы на текущий ремонт","тыс. руб.",0,0,0,"Указываются расходы на текущий ремонт, отнесенные к общехозяйственным расходам."]
[null,null,null,"3.13.2","Расходы на капитальный ремонт","тыс. руб.",0,0,0,"Указываются расходы на капитальный ремонт, отнесенные к общехозяйственным расходам."]
[null,null,null,"3.14","Расходы на капитальный и текущий ремонт основных производственных средств","тыс. руб.",0,0,0]
[null,null,null,null,"Информация об объемах товаров и услуг, их стоимости и способах приобретения у тех организаций, сумма оплаты услуг которых превышает 20 процентов суммы расходов по указанной статье расходов",null,"отсутствует","отсутствует","отсутствует",null,null,null,{"$f":"nerr(MATCH(\"есть\",List01_flag_index_1,0))","v":{"$error":"#NAME?"}}]
[null,null,null,"3.15","Расходы на услуги производственного характера, оказываемые по договорам с организациями на проведение регламентных работ в рамках технологического процесса","тыс. руб.",0,0,0]
[null,null,null,null,"Информация об объемах товаров и услуг, их стоимости и способах приобретения у тех организаций, сумма оплаты услуг которых превышает 20 процентов суммы расходов по указанной статье расходов",null,"отсутствует","отсутствует","отсутствует",null,null,null,{"$f":"nerr(MATCH(\"есть\",List01_flag_index_2,0))","v":{"$error":"#NAME?"}}]
[null,null,null,"3.16","Прочие расходы, которые подлежат отнесению на регулируемые виды деятельности, в том числе:","тыс. руб.",{"$f":"SUM(G43:G45)","v":0},{"$f":"SUM(H43:H45)","v":0},{"$f":"SUM(I43:I45)","v":0},"Указывается общая сумма прочих расходов, которые подлежат отнесению на регулируемые виды деятельности в соответствии с законодательством в сфере водоснабжения и водоотведения."]
[null,null,null,"3.16.0"]
[null,null,null,null,null,null,null,null,null,null,null,null,null,null,null,null,null,"SUM_CALC"]
[null,null,null,null,"Добавить прочие расходы",null,null,null,null,"В случае наличия нескольких видов прочих расходов информация указывается в отдельных строках."]
[null,null,null,"4","Чистая прибыль, полученная от регулируемого вида деятельности, в том числе:","тыс. руб.",0,0,0,"Указывается общая сумма чистой прибыли, полученной от регулируемого вида деятельности."]
[null,null,null,"4.1","Размер расходования чистой прибыли на финансирование мероприятий, предусмотренных инвестиционной программой регулируемой организации","тыс. руб.",0,0,0]
[null,null,null,"5","Изменение стоимости основных фондов, в том числе:","тыс. руб.",0,0,0,"Указывается общее изменение стоимости основных фондов."]
[null,null,null,"5.1","Изменение стоимости основных фондов за счет их ввода в эксплуатацию (вывода из эксплуатации)","тыс. руб.",0,0,0,"Указываются общее изменение стоимости основных фондов за счет их ввода в эксплуатацию и вывода из эксплуатации."]
[null,null,null,"5.1.1","Изменение стоимости основных фондов за счет их ввода в эксплуатацию","тыс. руб.",0,0,0,"Указываются изменение стоимости основных фондов за счет их ввода в эксплуатацию."]
[null,null,null,"5.1.2","Изменение стоимости основных фондов за счет их вывода в эксплуатацию","тыс. руб.",0,0,0,"Указываются изменение стоимости основных фондов за счет их вывода из эксплуатации."]
[null,null,null,"5.2","Изменение стоимости основных фондов за счет их переоценки","тыс. руб.",0,0,0]
[null,null,null,"6","Валовая прибыль (убытки) от продажи товаров и услуг по регулируемому виду деятельности","тыс. руб.",0,0,0]
[null,null,null,"7","Годовая бухгалтерская отчетность, включая бухгалтерский баланс и приложения к нему","-","https://portal.eias.ru/Portal/DownloadPage.aspx?type=12&guid=da692d8b-d8b8-4bef-bb2c-1f3eba6f5c14","https://portal.eias.ru/Portal/DownloadPage.aspx?type=12&guid=da692d8b-d8b8-4bef-bb2c-1f3eba6f5c14","https://portal.eias.ru/Portal/DownloadPage.aspx?type=12&guid=da692d8b-d8b8-4bef-bb2c-1f3eba6f5c14","Указывается ссылка на документ, предварительно загруженный в хранилище файлов ФГИС ЕИАС.\nРаскрывается регулируемой организацией, выручка от регулируемых видов деятельности которой превышает 80 процентов совокупной выручки за отчетный год."]
[null,null,null,"8","Объем покупаемой холодной воды, используемой для горячего водоснабжения","тыс. куб. м",0,0,0]
[null,null,null,"9","Объем холодной воды, получаемой с применением собственных источников водозабора (скважин) и используемой для горячего водоснабжения","тыс. куб. м",0,0,0]
[null,null,null,"10","Объем покупаемой тепловой энергии (мощности), используемой для горячего водоснабжения","тыс. Гкал или Гкал/ч",0,0,0]
[null,null,null,"11","Объем тепловой энергии, производимой с применением собственных источников и используемой для горячего водоснабжения","тыс. Гкал",0,0,0]
[null,null,null,"12","Потери воды в сетях","%",0,0,0]
[null,null,null,"13","Среднесписочная численность основного производственного персонала","человек",0,0,0]
[null,null,null,"14","Удельный расход электроэнергии на подачу воды в сеть","тыс. кВт.ч/тыс м3",0,0,0]
[]
[]
[]
[]
[]
[]
[null,null,null,null,null,null,{"$f":"IF(G17-G18 <>G53,\"WARNING\",\"\")","v":""},{"$f":"IF(H17-H18 <>H53,\"WARNING\",\"\")","v":""},{"$f":"IF(I17-I18 <>I53,\"WARNING\",\"\")","v":""}]

{"sheet":"Форма 1.0.1 | Форма 1.4.2","index":5,"n_rows":44,"n_cols":7,"rows_kept":44,"cut":false,"hidden":true,"merged":[[43,4,43,5],[4,3,4,6],[5,3,5,6],[7,3,7,6],[8,3,8,5],[8,6,9,6],[19,3,19,6],[20,3,20,5],[20,6,21,6],[31,3,31,6],[32,3,32,5],[32,6,33,6]]}
[null,null,null,null,null,null,4]
[]
[]
[]
[null,null,null,"Форма 1.0.1 Основные параметры раскрываемой информации 1"]
[null,null,null,{"$f":"IF(org=0,\"Не определено\",org)","v":"АО \"ИГТСК\""}]
[]
[null,null,22,"Форма 1.0.1"]
[null,null,null,"Параметры формы",null,null,"Описание параметров формы"]
["\\",null,null,"№ п/п",null,"Информация"]
[null,null,null,"1",2,3,4]
[null,null,null,1,"Дата заполнения/внесения изменений",{"$f":"IF(form_up_date=\"\",\"\",form_up_date)","v":"30.04.2019"},"Указывается календарная дата первичного заполнения или внесения изменений в форму в виде «ДД.ММ.ГГГГ»."]
[null,null,null,"2.1","Наименование централизованной системы коммунальной инфраструктуры","открытая система","Указывается наименование централизованной системы холодного водоснабжения/горячего водоснабжения/водоотведения/теплоснабжения, к которой относится размещаемая информация.\nВ случае наличия нескольких централизованных систем коммунальной инфраструктуры, информация по каждой из них указывается в отдельной строке. "]
[null,null,null,"3.1","Наименование регулируемого вида деятельности","Горячее водоснабжение","Указывается наименование вида регулируемой деятельности."]
[null,null,null,"4.1","Территория оказания услуги по регулируемому виду деятельности","x"]
[null,null,null,{"$f":"D15&\".1\"","v":"4.1.1"},"Субъект РФ",{"$f":"IF(region_name=\"\",\"\",region_name)","v":"Ивановская область"},"Указывается наименование субъекта Российской Федерации"]
[null,null,null,"4.1.1.1","муниципальный район","Городской округ Иваново","Указывается наименование муниципального района, на территории которого организация оказывает услуги по регулируемому виду деятельности."]
[null,null,null,"4.1.1.1.1","муниципальное образование","Городской округ Иваново (24701000)","Указывается наименование и код муниципального района, муниципального образования в соответствии с Общероссийским классификатором территорий муниципальных образований (далее - ОКТМО), входящего в муниципальный район, на территории которого организация оказывает услуги по регулируемому виду деятельности.\nВ случае оказания услуг по регулируемому виду деятельности на территории нескольких муниципальных районов (муниципальных образований) данные по каждому их них указываются в отдельной строке."]
[]
[null,null,23,"Форма 1.0.1"]
[null,null,null,"Параметры формы",null,null,"Описание параметров формы"]
["\\",null,null,"№ п/п",null,"Информация"]
[null,null,null,"1",2,3,4]
[null,null,null,1,"Дата заполнения/внесения изменений",{"$f":"IF(form_up_date=\"\",\"\",form_up_date)","v":"30.04.2019"},"Указывается календарная дата первичного заполнения или внесения изменений в форму в виде «ДД.ММ.ГГГГ»."]
[null,null,null,"2.1","Наименование централизованной системы коммунальной инфраструктуры","закрытая система в системе теплоснабжения от ЗАО \"УП ЖКХ\"","Указывается наименование централизованной системы холодного водоснабжения/горячего водоснабжения/водоотведения/теплоснабжения, к которой относится размещаемая информация.\nВ случае наличия нескольких централизованных систем коммунальной инфраструктуры, информация по каждой из них указывается в отдельной строке. "]
[null,null,null,"3.1","Наименование регулируемого вида деятельности","Горячее водоснабжение","Указывается наименование вида регулируемой деятельности."]
[null,null,null,"4.1","Территория оказания услуги по регулируемому виду деятельности","x"]
[null,null,null,{"$f":"D27&\".1\"","v":"4.1.1"},"Субъект РФ",{"$f":"IF(region_name=\"\",\"\",region_name)","v":"Ивановская область"},"Указывается наименование субъекта Российской Федерации"]
[null,null,null,"4.1.1.1","муниципальный район","Городской округ Иваново","Указывается наименование муниципального района, на территории которого организация оказывает услуги по регулируемому виду деятельности."]
[null,null,null,"4.1.1.1.1","муниципальное образование","Городской округ Иваново (24701000)","Указывается наименование и код муниципального района, муниципального образования в соответствии с Общероссийским классификатором территорий муниципальных образований (далее - ОКТМО), входящего в муниципальный район, на территории которого организация оказывает услуги по регулируемому виду деятельности.\nВ случае оказания услуг по регулируемому виду деятельности на территории нескольких муниципальных районов (муниципальных образований) данные по каждому их них указываются в отдельной строке."]
[]
[null,null,24,"Форма 1.0.1"]
[null,null,null,"Параметры формы",null,null,"Описание параметров формы"]
["\\",null,null,"№ п/п",null,"Информация"]
[null,null,null,"1",2,3,4]
[null,null,null,1,"Дата заполнения/внесения изменений",{"$f":"IF(form_up_date=\"\",\"\",form_up_date)","v":"30.04.2019"},"Указывается календарная дата первичного заполнения или внесения изменений в форму в виде «ДД.ММ.ГГГГ»."]
[null,null,null,"2.1","Наименование централизованной системы коммунальной инфраструктуры","закрытая система кроме системы теплоснабжения от ЗАО \"УП ЖКХ\"","Указывается наименование централизованной системы холодного водоснабжения/горячего водоснабжения/водоотведения/теплоснабжения, к которой относится размещаемая информация.\nВ случае наличия нескольких централизованных систем коммунальной инфраструктуры, информация по каждой из них указывается в отдельной строке. "]
[null,null,null,"3.1","Наименование регулируемого вида деятельности","Горячее водоснабжение","Указывается наименование вида регулируемой деятельности."]
[null,null,null,"4.1","Территория оказания услуги по регулируемому виду деятельности","x"]
[null,null,null,{"$f":"D39&\".1\"","v":"4.1.1"},"Субъект РФ",{"$f":"IF(region_name=\"\",\"\",region_name)","v":"Ивановская область"},"Указывается наименование субъекта Российской Федерации"]
[null,null,null,"4.1.1.1","муниципальный район","Городской округ Иваново","Указывается наименование муниципального района, на территории которого организация оказывает услуги по регулируемому виду деятельности."]
[null,null,null,"4.1.1.1.1","муниципальное образование","Городской округ Иваново (24701000)","Указывается наименование и код муниципального района, муниципального образования в соответствии с Общероссийским классификатором территорий муниципальных образований (далее - ОКТМО), входящего в муниципальный район, на территории которого организация оказывает услуги по регулируемому виду деятельности.\nВ случае оказания услуг по регулируемому виду деятельности на территории нескольких муниципальных районов (муниципальных образований) данные по каждому их них указываются в отдельной строке."]
[]
[null,null,null,null,"  1 Информация по данной форме публикуется при раскрытии информации по каждой из форм."]

{"sheet":"Форма 1.4.2","index":6,"n_rows":32,"n_cols":34,"rows_kept":32,"cut":false,"hidden":true,"merged":[[4,3,4,10],[36,4,36,17],[6,18,7,18],[6,3,6,17],[7,4,7,5],[7,7,7,8],[7,11,7,12],[11,3,17,3],[11,4,11,17],[18,3,24,3],[18,4,18,17],[25,3,31,3],[25,4,25,17],[11,28,17,28],[12,4,12,15],[12,20,14,20],[12,21,14,21],[15,4,15,15],[15,20,17,20],[15,21,17,21],[18,28,24,28],[19,4,19,15],[19,20,21,20],[19,21,21,21],[22,4,22,15],[22,20,24,20],[22,21,24,21],[25,28,31,28],[26,4,26,15],[26,20,28,20],[26,21,28,21],[29,4,29,15],[29,20,31,20],[29,21,31,21]]}
[]
[]
[]
[]
[null,null,null,"Информация о расходах на капитальный и текущий ремонт основных производственных средств, расходах на услуги производственного характера"]
[]
[null,null,null,"Параметры формы",null,null,null,null,null,null,null,null,null,null,null,null,null,null,"Описание параметров формы"]
[null,null,null,"№ п/п","№ п/п",null,"Наименование параметра","№ п/п",null,"Способ приобретения","Реквизиты договора","№ п/п",null,"Наименование товара/услуги","Объем приобретенных товаров, услуг","Единица измерения объема","Стоимость, тыс. руб.","Доля расходов, % (от суммы расходов по указанной статье)"]
[null,null,null,"1",null,"2","3",null,"4","5","6",null,"7","8","9","10","11","12"]
[]
[null,null,null,"0"]
[22,null,null,"1","Вид деятельности:\r\n  - Горячее водоснабжение\r\n\r\nТерритория оказания услуг:\r\n  - без дифференциации\r\n\r\nЦентрализованная система горячего водоснабжения:\r\n  - открытая система",null,null,null,null,null,null,null,null,null,null,null,null,null,null,null,null,null,null,null,null,null,null,null,null,null,"",null,"NOTSHOW",3]
[null,null,null,null,"Информация об объемах товаров и услуг, их стоимости и способах приобретения у организаций, в том числе:",null,null,null,null,null,null,null,null,null,null,null,{"$f":"SUMIF(T14:T15,\"i\",Q14:Q15)","v":0},null,"Указывается сумма стоимости приобретения товаров и услуг у организаций, сумма оплаты услуг которых превышает 20% суммы расходов на капитальный и текущий ремонт основных производственных средства","i",1,{"$f":"INDEX(List01_flag_index_1,1,MATCH(A12,List01_NumberColumns,0))","v":"отсутствует"}]
[null,null,null,null,null,0]
[null,null,null,null,"","","",""]
[null,null,null,null,"Расходы на услуги производственного характера, выполняемые по договорам с организациями на проведение регламентных работ в рамках технологического процесса. Из них товары и услуги, приобретенные у организаций, сумма оплаты услуг которых превышает 20% суммы расходов по статье:",null,null,null,null,null,null,null,null,null,null,null,{"$f":"SUMIF(T17:T18,\"i\",Q17:Q18)","v":0},null,"Указывается сумма стоимости приобретения товаров и услуг у организаций, сумма оплаты услуг которых превышает 20% суммы расходов на капитальный и текущий ремонт основных производственных средства","i",2,{"$f":"INDEX(List01_flag_index_2,1,MATCH(A12,List01_NumberColumns,0))","v":"отсутствует"}]
[null,null,null,null,null,0]
[null,null,null,null,"","","",""]
[23,null,null,"2","Вид деятельности:\r\n  - Горячее водоснабжение\r\n\r\nТерритория оказания услуг:\r\n  - без дифференциации\r\n\r\nЦентрализованная система горячего водоснабжения:\r\n  - закрытая система в системе теплоснабжения от ЗАО \"УП ЖКХ\"",null,null,null,null,null,null,null,null,null,null,null,null,null,null,null,null,null,null,null,null,null,null,null,null,null,"",null,"NOTSHOW",3]
[null,null,null,null,"Информация об объемах товаров и услуг, их стоимости и способах приобретения у организаций, в том числе:",null,null,null,null,null,null,null,null,null,null,null,{"$f":"SUMIF(T21:T22,\"i\",Q21:Q22)","v":0},null,"Указывается сумма стоимости приобретения товаров и услуг у организаций, сумма оплаты услуг которых превышает 20% суммы расходов на капитальный и текущий ремонт основных производственных средства","i",1,{"$f":"INDEX(List01_flag_index_1,1,MATCH(A19,List01_NumberColumns,0))","v":"отсутствует"}]
[null,null,null,null,null,0]
[null,null,null,null,"","","",""]
[null,null,null,null,"Расходы на услуги производственного характера, выполняемые по договорам с организациями на проведение регламентных работ в рамках технологического процесса. Из них товары и услуги, приобретенные у организаций, сумма оплаты услуг которых превышает 20% суммы расходов по статье:",null,null,null,null,null,null,null,null,null,null,null,{"$f":"SUMIF(T24:T25,\"i\",Q24:Q25)","v":0},null,"Указывается сумма стоимости приобретения товаров и услуг у организаций, сумма оплаты услуг которых превышает 20% суммы расходов на капитальный и текущий ремонт основных производственных средства","i",2,{"$f":"INDEX(List01_flag_index_2,1,MATCH(A19,List01_NumberColumns,0))","v":"отсутствует"}]
[null,null,null,null,null,0]
[null,null,null,null,"","","",""]
[24,null,null,"3","Вид деятельности:\r\n  - Горячее водоснабжение\r\n\r\nТерритория оказания услуг:\r\n  - без дифференциации\r\n\r\nЦентрализованная система горячего водоснабжения:\r\n  - закрытая система кроме системы теплоснабжения от ЗАО \"УП ЖКХ\"",null,null,null,null,null,null,null,null,null,null,null,null,null,null,null,null,null,null,null,null,null,null,null,null,null,"",null,"NOTSHOW",3]
[null,null,null,null,"Информация об объемах товаров и услуг, их стоимости и способах приобретения у организаций, в том числе:",null,null,null,null,null,null,null,null,null,null,null,{"$f":"SUMIF(T28:T29,\"i\",Q28:Q29)","v":0},null,"Указывается сумма стоимости приобретения товаров и услуг у организаций, сумма оплаты услуг которых превышает 20% суммы расходов на капитальный и текущий ремонт основных производственных средства","i",1,{"$f":"INDEX(List01_flag_index_1,1,MATCH(A26,List01_NumberColumns,0))","v":"отсутствует"}]
[null,null,null,null,null,0]
[null,null,null,null,"","","",""]
[null,null,null,null,"Расходы на услуги производственного характера, выполняемые по договорам с организациями на проведение регламентных работ в рамках технологического процесса. Из них товары и услуги, приобретенные у организаций, сумма оплаты услуг которых превышает 20% суммы расходов по статье:",null,null,null,null,null,null,null,null,null,null,null,{"$f":"SUMIF(T31:T32,\"i\",Q31:Q32)","v":0},null,"Указывается сумма стоимости приобретения товаров и услуг у организаций, сумма оплаты услуг которых превышает 20% суммы расходов на капитальный и текущий ремонт основных производственных средства","i",2,{"$f":"INDEX(List01_flag_index_2,1,MATCH(A26,List01_NumberColumns,0))","v":"отсутствует"}]
[null,null,null,null,null,0]
[null,null,null,null,"","","",""]

{"sheet":"Форма 1.5","index":7,"n_rows":25,"n_cols":10,"rows_kept":25,"cut":false,"hidden":false,"merged":[[2,3,2,5],[6,9,8,9],[8,0,8,1],[7,3,8,3],[7,4,8,4],[7,5,8,5],[6,3,6,6]]}
[null,null,null,null,null,null,4,5,6,5]
[]
[null,null,null,"Информация об основных потребительских характеристиках регулируемых товаров и услуг регулируемой организации и их соответствии установленным требованиям"]
[]
[]
[null,null,null,null,null,null,22,23,24]
[null,null,null,"Параметры формы",null,null,null,null,null,"Описание параметров формы"]
[null,null,null,"№ п/п","Информация, подлежащая раскрытию","Единица измерения","Вид деятельности:\r\n  - Горячее водоснабжение\r\n\r\nТерритория оказания услуг:\r\n  - без дифференциации\r\n\r\nЦентрализованная система горячего водоснабжения:\r\n  - открытая система","Вид деятельности:\r\n  - Горячее водоснабжение\r\n\r\nТерритория оказания услуг:\r\n  - без дифференциации\r\n\r\nЦентрализованная система горячего водоснабжения:\r\n  - закрытая система в системе теплоснабжения от ЗАО \"УП ЖКХ\"","Вид деятельности:\r\n  - Горячее водоснабжение\r\n\r\nТерритория оказания услуг:\r\n  - без дифференциации\r\n\r\nЦентрализованная система горячего водоснабжения:\r\n  - закрытая система кроме системы теплоснабжения от ЗАО \"УП ЖКХ\""]
[null,null,null,null,null,null,"Информация","Информация","Информация"]
[null,null,null,"1","2","3",{"$f":"G1","v":4},{"$f":"H1","v":5},{"$f":"I1","v":6}]
[null,null,null,1,"Количество аварий на системах горячего водоснабжения","ед. на км",{"$f":"2.066/4","v":0.51649999999999996},0,{"$f":"12.03/11","v":1.0936363636363635},"Указывается количество любых нарушений функционирования системы горячего водоснабжения в расчете на один километр трубопровода."]
[null,null,null,"2","Количество случаев ограничения подачи горячей воды","х","х","х","х","Указывается суммарное количество часов, превышающих допустимую продолжительность подачи горячей воды."]
[null,null,null,"2.1.1","количество случаев ограничения подачи горячей воды для ограничений сроком менее 24 часов","ед.",4,0,10,"Указывается суммарное количество ограничений подачи горячей воды по графику в течение отчетного периода. В расчет принимаются ограничения сроком менее 24 часов каждое."]
[null,null,null,"2.1.2","срок действия ограничений подачи горячей воды для ограничений сроком менее 24 часов","ч",0,0,0,"Указывается сумма времени ограничений подачи горячей воды по графику в течение отчетного периода. В расчет принимаются ограничения сроком менее 24 часов каждое."]
[null,null,null,"2.2.1","количество случаев ограничения подачи горячей воды для ограничений сроком 24 часа и более","ед.",0,0,1,"Указывается суммарное количество ограничений подачи горячей воды по графику в течение отчетного периода. В расчет принимаются ограничения сроком 24 часа и более каждое."]
[null,null,null,"2.2.2","срок действия ограничений подачи холодной воды для ограничений сроком 24 часа и более","ч",0,0,0,"Указывается сумма времени ограничений подачи горячей воды по графику в течение отчетного периода. В расчет принимаются ограничения сроком 24 часа и более каждое."]
[null,null,null,"3","Доля потребителей, затронутых ограничениями подачи горячей воды","x"]
[null,null,null,"3.1","доля потребителей, затронутых ограничениями подачи горячей воды для ограничений сроком менее 24 часов","%",100,0,99,"Указывается отношение количества потребителей, затронутых как минимум одним ограничением подачи горячей воды по графику длительностью менее 24 часа в течение отчетного периода, и суммарного количества обслуживаемых потребителей."]
[null,null,null,"3.2","доля потребителей, затронутых ограничениями подачи горячей воды для ограничений сроком менее 24 часа и более","%",0,0,1,"Указывается отношение количества потребителей, затронутых как минимум одним ограничением подачи горячей воды по графику длительностью 24 часа и более в течение отчетного периода, и суммарного количества обслуживаемых потребителей."]
[null,null,null,"4","Количество часов (суммарно за календарный год) отклонения от нормативной температуры горячей воды в точке разбора","ч",0,0,0,"Указывается суммарное количество часов отклонения от нормативной температуры горячей воды в точке разбора."]
[null,null,null,"5","Соответствие состава и свойств горячей воды установленным санитарным нормам и правилам","x","https://portal.eias.ru/Portal/DownloadPage.aspx?type=12&guid=0b7b5765-5931-4f22-97d8-9df39e047e72","https://portal.eias.ru/Portal/DownloadPage.aspx?type=12&guid=0b7b5765-5931-4f22-97d8-9df39e047e72","https://portal.eias.ru/Portal/DownloadPage.aspx?type=12&guid=0b7b5765-5931-4f22-97d8-9df39e047e72","Указывается ссылка на документ, предварительно загруженный в хранилище файлов ФГИС ЕИАС."]
[null,null,null,"6","Доля исполненных в срок договоров о подключении","%",0,0,0,"Указывается процент общего количества заключенных договоров о подключении."]
[null,null,null,"7","Средняя продолжительность рассмотрения заявлений о подключении","дн.",0,0,0]
[null,null,null,"8","О результатах технического обследования централизованных систем горячего водоснабжения, в том числе:","x","https://portal.eias.ru/Portal/DownloadPage.aspx?type=12&guid=0b7b5765-5931-4f22-97d8-9df39e047e72","https://portal.eias.ru/Portal/DownloadPage.aspx?type=12&guid=0b7b5765-5931-4f22-97d8-9df39e047e72","https://portal.eias.ru/Portal/DownloadPage.aspx?type=12&guid=0b7b5765-5931-4f22-97d8-9df39e047e72","Указывается ссылка на документ, предварительно загруженный в хранилище файлов ФГИС ЕИАС."]
[null,null,null,"8.1","о фактических значениях показателей технико-экономического состояния централизованных систем горячего водоснабжения, включая значения показателей физического износа и энергетической эффективности объектов централизованных систем горячего водоснабжения.","x","https://portal.eias.ru/Portal/DownloadPage.aspx?type=12&guid=0b7b5765-5931-4f22-97d8-9df39e047e72","https://portal.eias.ru/Portal/DownloadPage.aspx?type=12&guid=0b7b5765-5931-4f22-97d8-9df39e047e72","https://portal.eias.ru/Portal/DownloadPage.aspx?type=12&guid=0b7b5765-5931-4f22-97d8-9df39e047e72","Указывается ссылка на документ, предварительно загруженный в хранилище файлов ФГИС ЕИАС."]

{"sheet":"Форма 1.0.1 | Форма 1.6","index":8,"n_rows":44,"n_cols":7,"rows_kept":44,"cut":false,"hidden":true,"merged":[[43,4,43,5],[4,3,4,6],[5,3,5,6],[7,3,7,6],[8,3,8,5],[8,6,9,6],[19,3,19,6],[20,3,20,5],[20,6,21,6],[31,3,31,6],[32,3,32,5],[32,6,33,6]]}
[null,null,null,null,null,null,4]
[]
[]
[]
[null,null,null,"Форма 1.0.1 Основные параметры раскрываемой информации 1"]
[null,null,null,{"$f":"IF(org=0,\"Не определено\",org)","v":"АО \"ИГТСК\""}]
[]
[null,null,22,"Форма 1.0.1"]
[null,null,null,"Параметры формы",null,null,"Описание параметров формы"]
["\\",null,null,"№ п/п",null,"Информация"]
[null,null,null,"1",2,3,4]
[null,null,null,1,"Дата заполнения/внесения изменений",{"$f":"IF(form_up_date=\"\",\"\",form_up_date)","v":"30.04.2019"},"Указывается календарная дата первичного заполнения или внесения изменений в форму в виде «ДД.ММ.ГГГГ»."]
[null,null,null,"2.1","Наименование централизованной системы коммунальной инфраструктуры","открытая система","Указывается наименование централизованной системы холодного водоснабжения/горячего водоснабжения/водоотведения/теплоснабжения, к которой относится размещаемая информация.\nВ случае наличия нескольких централизованных систем коммунальной инфраструктуры, информация по каждой из них указывается в отдельной строке. "]
[null,null,null,"3.1","Наименование регулируемого вида деятельности","Горячее водоснабжение","Указывается наименование вида регулируемой деятельности."]
[null,null,null,"4.1","Территория оказания услуги по регулируемому виду деятельности","x"]
[null,null,null,{"$f":"D15&\".1\"","v":"4.1.1"},"Субъект РФ",{"$f":"IF(region_name=\"\",\"\",region_name)","v":"Ивановская область"},"Указывается наименование субъекта Российской Федерации"]
[null,null,null,"4.1.1.1","муниципальный район","Городской округ Иваново","Указывается наименование муниципального района, на территории которого организация оказывает услуги по регулируемому виду деятельности."]
[null,null,null,"4.1.1.1.1","муниципальное образование","Городской округ Иваново (24701000)","Указывается наименование и код муниципального района, муниципального образования в соответствии с Общероссийским классификатором территорий муниципальных образований (далее - ОКТМО), входящего в муниципальный район, на территории которого организация оказывает услуги по регулируемому виду деятельности.\nВ случае оказания услуг по регулируемому виду деятельности на территории нескольких муниципальных районов (муниципальных образований) данные по каждому их них указываются в отдельной строке."]
[]
[null,null,23,"Форма 1.0.1"]
[null,null,null,"Параметры формы",null,null,"Описание параметров формы"]
["\\",null,null,"№ п/п",null,"Информация"]
[null,null,null,"1",2,3,4]
[null,null,null,1,"Дата заполнения/внесения изменений",{"$f":"IF(form_up_date=\"\",\"\",form_up_date)","v":"30.04.2019"},"Указывается календарная дата первичного заполнения или внесения изменений в форму в виде «ДД.ММ.ГГГГ»."]
[null,null,null,"2.1","Наименование централизованной системы коммунальной инфраструктуры","закрытая система в системе теплоснабжения от ЗАО \"УП ЖКХ\"","Указывается наименование централизованной системы холодного водоснабжения/горячего водоснабжения/водоотведения/теплоснабжения, к которой относится размещаемая информация.\nВ случае наличия нескольких централизованных систем коммунальной инфраструктуры, информация по каждой из них указывается в отдельной строке. "]
[null,null,null,"3.1","Наименование регулируемого вида деятельности","Горячее водоснабжение","Указывается наименование вида регулируемой деятельности."]
[null,null,null,"4.1","Территория оказания услуги по регулируемому виду деятельности","x"]
[null,null,null,{"$f":"D27&\".1\"","v":"4.1.1"},"Субъект РФ",{"$f":"IF(region_name=\"\",\"\",region_name)","v":"Ивановская область"},"Указывается наименование субъекта Российской Федерации"]
[null,null,null,"4.1.1.1","муниципальный район","Городской округ Иваново","Указывается наименование муниципального района, на территории которого организация оказывает услуги по регулируемому виду деятельности."]
[null,null,null,"4.1.1.1.1","муниципальное образование","Городской округ Иваново (24701000)","Указывается наименование и код муниципального района, муниципального образования в соответствии с Общероссийским классификатором территорий муниципальных образований (далее - ОКТМО), входящего в муниципальный район, на территории которого организация оказывает услуги по регулируемому виду деятельности.\nВ случае оказания услуг по регулируемому виду деятельности на территории нескольких муниципальных районов (муниципальных образований) данные по каждому их них указываются в отдельной строке."]
[]
[null,null,24,"Форма 1.0.1"]
[null,null,null,"Параметры формы",null,null,"Описание параметров формы"]
["\\",null,null,"№ п/п",null,"Информация"]
[null,null,null,"1",2,3,4]
[null,null,null,1,"Дата заполнения/внесения изменений",{"$f":"IF(form_up_date=\"\",\"\",form_up_date)","v":"30.04.2019"},"Указывается календарная дата первичного заполнения или внесения изменений в форму в виде «ДД.ММ.ГГГГ»."]
[null,null,null,"2.1","Наименование централизованной системы коммунальной инфраструктуры","закрытая система кроме системы теплоснабжения от ЗАО \"УП ЖКХ\"","Указывается наименование централизованной системы холодного водоснабжения/горячего водоснабжения/водоотведения/теплоснабжения, к которой относится размещаемая информация.\nВ случае наличия нескольких централизованных систем коммунальной инфраструктуры, информация по каждой из них указывается в отдельной строке. "]
[null,null,null,"3.1","Наименование регулируемого вида деятельности","Горячее водоснабжение","Указывается наименование вида регулируемой деятельности."]
[null,null,null,"4.1","Территория оказания услуги по регулируемому виду деятельности","x"]
[null,null,null,{"$f":"D39&\".1\"","v":"4.1.1"},"Субъект РФ",{"$f":"IF(region_name=\"\",\"\",region_name)","v":"Ивановская область"},"Указывается наименование субъекта Российской Федерации"]
[null,null,null,"4.1.1.1","муниципальный район","Городской округ Иваново","Указывается наименование муниципального района, на территории которого организация оказывает услуги по регулируемому виду деятельности."]
[null,null,null,"4.1.1.1.1","муниципальное образование","Городской округ Иваново (24701000)","Указывается наименование и код муниципального района, муниципального образования в соответствии с Общероссийским классификатором территорий муниципальных образований (далее - ОКТМО), входящего в муниципальный район, на территории которого организация оказывает услуги по регулируемому виду деятельности.\nВ случае оказания услуг по регулируемому виду деятельности на территории нескольких муниципальных районов (муниципальных образований) данные по каждому их них указываются в отдельной строке."]
[]
[null,null,null,null,"  1 Информация по данной форме публикуется при раскрытии информации по каждой из форм."]

{"sheet":"Форма 1.6","index":9,"n_rows":87,"n_cols":13,"rows_kept":87,"cut":false,"hidden":true,"merged":[[73,1,77,1],[78,1,82,1],[7,5,8,5],[7,6,8,6],[7,7,8,7],[19,1,21,1],[63,1,65,1],[68,1,72,1],[22,1,24,1],[4,5,4,8],[86,6,86,12],[85,6,85,12],[7,8,7,10],[6,12,8,12],[6,5,6,11]]}
[]
[]
[]
[]
[null,null,null,null,null,"Информация об инвестиционных программах регулируемой организации1"]
[]
[null,null,null,null,null,"Параметры формы",null,null,null,null,null,null,"Описание параметров формы"]
[null,null,null,null,null,"№ п/п","Наименование параметра","Единица измерения"]
[null,null,null,null,null,null,null,null,"Инвестиционная программа в целом","Мероприятие2","Добавить мероприятие"]
[null,null,null,null,null,"1","2","3","4","4.0"]
[null,null,null,null,null,1,"Наименование инвестиционной программы/мероприятия","x"]
[null,null,null,null,null,2,"Дата утверждения инвестиционной программы","x",null,"x",null,null,"Дата утверждения инвестиционной программы указывается в виде «ДД.ММ.ГГГГ»."]
[null,null,null,null,null,"2.1","Дата изменения инвестиционной программы","x",null,"x",null,null,"Дата изменения инвестиционной программы указывается (в случае наличия изменения) в виде «ДД.ММ.ГГГГ»."]
[null,null,null,null,null,"3","Цель инвестиционной программы","x",null,"x",null,null,"Цель инвестиционной программы определяется из перечня: Автоматизация (с уменьшением штата); Уменьшение удельных затрат (повышение коэффициента полезного действия); Уменьшение издержек на производство; Снижение аварийности; Прочее\nВозможен выбор нескольких пунктов."]
[null,null,null,null,null,"4","Наименование уполномоченного органа, утвердившего программу","x",null,"x",null,null,"Указывается уполномоченный в соответствии с законодательством Российской Федерации орган власти, утвердивший инвестиционную программу."]
[null,null,null,null,null,"5","Наименование органа местного самоуправления, согласовавшего инвестиционную программу","x",null,"x"]
[null,null,null,null,null,"6","Срок начала реализации инвестиционной программы/мероприятия","x",null,null,null,null,"Срок начала реализации инвестиционной программы/мероприятия указывается в виде «ДД.ММ.ГГГГ»."]
[null,null,null,null,null,"7","Срок окончания реализации инвестиционной программы/мероприятия","x",null,null,null,null,"Срок окончания реализации инвестиционной программы/мероприятия указывается в виде «ДД.ММ.ГГГГ»."]
[null,null,null,null,null,"8","Потребность в финансовых средствах, необходимых для реализации инвестиционной программы, в том числе с разбивкой по годам, мероприятиям и источникам финансирования инвестиционной программы:","тыс. руб.",{"$f":"SUM(J19:K19)","v":0},{"$f":"SUMIF(List06_flag_year,\"y\",J20:J26)","v":0},null,null,"Указывается суммарная потребность в финансовых средствах, необходимых для реализации инвестиционной программы, по всем источникам финансирования."]
[null,"8.0",null,null,null,{"$f":"B20","v":"8.0"},null,"тыс. руб.",{"$f":"SUM(I21:I22)","v":0},{"$f":"SUM(J21:J22)","v":0},"y",null,"Год реализации инвестиционной программы/мероприятия должен содержаться в сроке реализации инвестиционной программы, определенном в пунктах 6 и 7 данной формы.\nВ случае реализации инвестиционной программы/мероприятия в течение нескольких лет информация по каждому году указывается в отдельных строках."]
[null,null,1,null,null,{"$f":"B20&\".\"&C21","v":"8.0.1"},null,"тыс. руб.",null,null,"i",null,"Вид источника финансирования определяется из перечня: Кредиты банков; Кредиты иностранных банков; Заемные средства др. организаций; Федеральный бюджет; Бюджет субъекта Российской Федерации; Бюджет муниципального образования; Средства внебюджетных фондов; Прибыль, направленная на инвестиции; Амортизация; Инвестиционная надбавка к тарифу; Плата за подключение (технологическое присоединение);  Прочие средства.\nВ случае наличия нескольких источников финансирования информация по каждому из них указывается в отдельных строках."]
[null,null,null,null,null,null,"Добавить источники"]
[null,"8.1",null,null,null,{"$f":"B23","v":"8.1"},null,"тыс. руб.",{"$f":"SUM(I24:I25)","v":0},{"$f":"SUM(J24:J25)","v":0},"y",null,"Год реализации инвестиционной программы/мероприятия должен содержаться в сроке реализации инвестиционной программы, определенном в пунктах 6 и 7 данной формы.\nВ случае реализации инвестиционной программы/мероприятия в течение нескольких лет информация по каждому году указывается в отдельных строках."]
[null,null,1,null,null,{"$f":"B23&\".\"&C24","v":"8.1.1"},null,"тыс. руб.",null,null,"i",null,"Вид источника финансирования определяется из перечня: Кредиты банков; Кредиты иностранных банков; Заемные средства др. организаций; Федеральный бюджет; Бюджет субъекта Российской Федерации; Бюджет муниципального образования; Средства внебюджетных фондов; Прибыль, направленная на инвестиции; Амортизация; Инвестиционная надбавка к тарифу; Плата за подключение (технологическое присоединение);  Прочие средства.\nВ случае наличия нескольких источников финансирования информация по каждому из них указывается в отдельных строках."]
[null,null,null,null,null,null,"Добавить источники"]
[null,null,null,null,null,null,"Добавить год"]
[null,null,null,null,null,"9","Целевые показатели инвестиционной программы","x","x","x"]
[null,null,null,null,null,"9.1","Срок окупаемости","x","x","x"]
[null,null,null,null,null,"9.1.1","Факт","лет"]
[null,null,null,null,null,"9.1.2","План","лет"]
[null,null,null,null,null,"9.2","Перебои в снабжении потребителей","x","x","x"]
[null,null,null,null,null,"9.2.1","Факт","час./чел.",null,null,null,null,"Указывается фактическое значение отношения суммы произведений продолжительности отключений и количества пострадавших потребителей от каждого из этих отключений к количеству потребителей, проживающих в домах, в которых проходили отключения в отчетном периоде."]
[null,null,null,null,null,"9.2.2","План","час./чел.",null,null,null,null,"Указывается плановое значение отношения суммы произведений\nпродолжительности отключений и количества пострадавших потребителей от каждого из этих отключений к количеству потребителей, проживающих в домах, в которых проходили отключения в отчетном периоде."]
[null,null,null,null,null,"9.3","Продолжительность (бесперебойность) поставки товаров и услуг","x","x","x"]
[null,null,null,null,null,"9.3.1","Факт","час./день",null,null,null,null,"Указывается фактическое значение отношения количества часов предоставления услуг к количеству календарных дней в отчетном периоде."]
[null,null,null,null,null,"9.3.2","План","час./день",null,null,null,null,"Указывается плановое значение отношения количества часов предоставления услуг к количеству календарных дней в отчетном периоде."]
[null,null,null,null,null,"9.4","Доля потерь и неучтенного потребления ","x","x","x"]
[null,null,null,null,null,"9.4.1","Факт","%",null,null,null,null,"Указывается фактическое значение доли потерь и неучтенного потребления воды в общем объеме воды, поданной в водопроводную сеть в отчетном периоде."]
[null,null,null,null,null,"9.4.2","План","%",null,null,null,null,"Указывается плановое значение доли потерь и неучтенного потребления воды в общем объеме воды, поданной в водопроводную сеть в отчетном периоде."]
[null,null,null,null,null,"9.5","Обеспеченность потребления товаров и услуг приборами учета","x","x","x"]
[null,null,null,null,null,"9.5.1","Факт","%"]
[null,null,null,null,null,"9.5.2","План","%"]
[null,null,null,null,null,"9.6","Численность населения, получающего услуги данной организации","x","x","x"]
[null,null,null,null,null,"9.6.1","Факт","чел.",null,null,null,null,"Указывается фактическое значение численности населения, проживающего в многоквартирных и жилых домах, подключенных к системе горячего водоснабжения в отчетном периоде."]
[null,null,null,null,null,"9.6.2","План","чел.",null,null,null,null,"Указывается плановое значение численности населения, проживающего в многоквартирных и жилых домах, подключенных к системе горячего водоснабжения в отчетном периоде."]
[null,null,null,null,null,"9.7","Удельное водопотребление","x","x","x"]
[null,null,null,null,null,"9.7.1","Факт","куб. м/чел.",null,null,null,null,"Указывается фактическое значение объема потребления воды в расчете на одного человека, получающего услуги организации в отчетном периоде."]
[null,null,null,null,null,"9.7.2","План","куб. м/чел.",null,null,null,null,"Указывается плановое значение объема потребления воды в расчете на одного человека, получающего услуги организации в отчетном периоде."]
[null,null,null,null,null,"9.8","Расход топлива","x","x","x"]
[null,null,null,null,null,"9.8.1","Факт","т.у.т./куб. м",null,null,null,null,"Указывается фактическое значение расхода топлива в отчетном периоде."]
[null,null,null,null,null,"9.8.2","План","т.у.т./куб. м",null,null,null,null,"Указывается плановое значение расхода топлива в отчетном периоде."]
[null,null,null,null,null,"9.9","Расход электроэнергии на производство и поставку горячей воды","x","x","x"]
[null,null,null,null,null,"9.9.1","Факт","кВт.ч/куб. м",null,null,null,null,"Указывается фактическое значение расхода электроэнергии на производство и поставку в отчетном периоде."]
[null,null,null,null,null,"9.9.2","План","кВт.ч/куб. м",null,null,null,null,"Указывается плановое значение расхода электроэнергии на производство и поставку в отчетном периоде."]
[null,null,null,null,null,"9.10","Расход тепловой энергии","x","x","x"]
[null,null,null,null,null,"9.10.1","Факт","Гкал/куб. м",null,null,null,null,"Указывается фактическое значение расхода тепловой энергии в отчетном периоде."]
[null,null,null,null,null,"9.10.2","План","Гкал/куб. м",null,null,null,null,"Указывается плановое значение расхода тепловой энергии в отчетном периоде."]
[null,null,null,null,null,"9.11","Количество аварий","x","x","x"]
[null,null,null,null,null,"9.11.1","Факт","ед./км",null,null,null,null,"Указывается фактическое значение отношения количества аварий на системах коммунальной инфраструктуры к протяженности сетей в отчетном периоде."]
[null,null,null,null,null,"9.11.2","План","ед./км",null,null,null,null,"Указывается плановое значение отношения количества аварий на системах коммунальной инфраструктуры к протяженности сетей в отчетном периоде."]
[null,null,null,null,null,"9.12","Производительность труда","x","x","x",null,null,"В случае наличия дополнительных целевых показателей инвестиционной программы информация по ним указывается в отдельных строках."]
[null,null,null,null,null,"9.12.1","Факт","тыс. руб./чел.",null,null,null,null,"Указывается фактическое значение отношение фонда оплаты труда к численности всех рабочих основного вида деятельности организации.  \nВ число рабочих основного вида деятельности включаются рабочие, занятые на производственных процессах по подъему, очистке и транспортировке воды."]
[null,null,null,null,null,"9.12.2","План","тыс. руб./чел.",null,null,null,null,"Указывается плановое значение отношение фонда оплаты труда к численности всех рабочих основного вида деятельности организации. \nВ число рабочих основного вида деятельности включаются рабочие, занятые на производственных процессах по подъему, очистке и транспортировке воды."]
[null,"9.12",null,null,null,{"$f":"B64","v":"9.12"},null,null,"x","x"]
[null,null,null,null,null,{"$f":"B64&\".1\"","v":"9.12.1"},"Факт",{"$f":"IF(H64=\"\",\"x\",H64)","v":"x"}]
[null,null,null,null,null,{"$f":"B64&\".2\"","v":"9.12.2"},"План",{"$f":"IF(H64=\"\",\"x\",H64)","v":"x"}]
[null,null,null,null,null,null,"Добавить показатель"]
[null,"print",null,null,null,"10","Использование инвестиционных средств за отчетный период","x","x","x"]
[null,"10.0",null,null,null,{"$f":"B69","v":"10.0"},"Использовано инвестиционных средств всего в отчетном периоде, в том числе:","тыс. руб.",{"$f":"SUM(I70:I73)","v":0},{"$f":"SUM(J70:J73)","v":0},null,null,"Указывается сумма использованных инвестиционных средства по всем источникам финансирования в отчетном периоде."]
[null,null,null,null,null,{"$f":"B69&\".1\"","v":"10.0.1"},"I квартал","тыс. руб.",{"$f":"SUMIF($G$74:$G$84,$G70,I$74:I$84)","v":0},0,null,null,"Указывается сумма использованных инвестиционных средств в I квартале отчетного периода по всем источникам финансирования."]
[null,null,null,null,null,{"$f":"B69&\".2\"","v":"10.0.2"},"II квартал","тыс. руб.",0,0,null,null,"Указывается сумма использованных инвестиционных средств в II квартале отчетного периода по всем источникам финансирования."]
[null,null,null,null,null,{"$f":"B69&\".3\"","v":"10.0.3"},"III квартал","тыс. руб.",0,0,null,null,"Указывается сумма использованных инвестиционных средств в III квартале отчетного периода по всем источникам финансирования."]
[null,null,null,null,null,{"$f":"B69&\".4\"","v":"10.0.4"},"IV квартал","тыс. руб.",0,0,null,null,"Указывается сумма использованных инвестиционных средств в IV квартале отчетного периода по всем источникам финансирования."]
[null,"10.0",null,null,null,{"$f":"B74","v":"10.0"},null,"тыс. руб.",{"$f":"SUM(I75:I78)","v":0},{"$f":"SUM(J75:J78)","v":0},{"$f":"G74","v":0},null,"Вид источника финансирования определяется из перечня: Кредиты банков; Кредиты иностранных банков; Заемные средства др. организаций; Федеральный бюджет; Бюджет субъекта Российской Федерации; Бюджет муниципального образования; Средства внебюджетных фондов; Прибыль, направленная на инвестиции; Амортизация; Инвестиционная надбавка к тарифу; Плата за подключение (технологическое присоединение); Прочие средства.\nВ случае наличия нескольких источников финансирования информация по каждому из них указывается в отдельных строках."]
[null,null,null,null,null,{"$f":"B74&\".1\"","v":"10.0.1"},"I квартал","тыс. руб."]
[null,null,null,null,null,{"$f":"B74&\".2\"","v":"10.0.2"},"II квартал","тыс. руб."]
[null,null,null,null,null,{"$f":"B74&\".3\"","v":"10.0.3"},"III квартал","тыс. руб."]
[null,null,null,null,null,{"$f":"B74&\".4\"","v":"10.0.4"},"IV квартал","тыс. руб."]
[null,"10.1",null,null,null,{"$f":"B79","v":"10.1"},null,"тыс. руб.",{"$f":"SUM(I80:I83)","v":0},{"$f":"SUM(J80:J83)","v":0},{"$f":"G79","v":0},null,"Вид источника финансирования определяется из перечня: Кредиты банков; Кредиты иностранных банков; Заемные средства др. организаций; Федеральный бюджет; Бюджет субъекта Российской Федерации; Бюджет муниципального образования; Средства внебюджетных фондов; Прибыль, направленная на инвестиции; Амортизация; Инвестиционная надбавка к тарифу; Плата за подключение (технологическое присоединение); Прочие средства.\nВ случае наличия нескольких источников финансирования информация по каждому из них указывается в отдельных строках."]
[null,null,null,null,null,{"$f":"B79&\".1\"","v":"10.1.1"},"I квартал","тыс. руб."]
[null,null,null,null,null,{"$f":"B79&\".2\"","v":"10.1.2"},"II квартал","тыс. руб."]
[null,null,null,null,null,{"$f":"B79&\".3\"","v":"10.1.3"},"III квартал","тыс. руб."]
[null,null,null,null,null,{"$f":"B79&\".4\"","v":"10.1.4"},"IV квартал","тыс. руб."]
[null,null,null,null,null,null,"Добавить источники"]
[]
[null,null,null,null,null,1,"Информация раскрывается в случае, если регулируемая организация выполняет или планирует выполнение инвестиционной программы в отчетном периоде."]
[null,null,null,null,null,2,"В случае выполнения нескольких мероприятий информация по каждому из них указывается в отдельной колонке"]

{"sheet":"Форма 1.0.2","index":10,"n_rows":15,"n_cols":13,"rows_kept":15,"cut":false,"hidden":true,"merged":[[11,10,12,10],[14,4,14,9],[4,3,4,9],[7,3,7,9],[7,10,9,10],[8,3,9,3],[8,4,8,5],[8,6,8,9]]}
[]
[]
[]
[]
[null,null,null,"Форма 1.0.2 Информация о публикации в печатных изданиях 2"]
[]
[]
[null,null,null,"Параметры формы",null,null,null,null,null,null,"Описание параметров формы"]
[null,null,null,"№ п/п","Форма публикации",null,"Официальное печатное издание"]
[null,null,null,null,"Номер","Наименование","Наименование","Номер","Дата выпуска","Ссылка на документ"]
[null,null,null,"1","2","3","4","5","6","7"]
["3","",null,"1",null,null,null,null,null,null,"В колонке «Дата выпуска» дата выпуска печатного издания указывается в виде «ДД.ММ.ГГГГ».\nВ колонке «Ссылка на документ» указывается ссылка на отсканированную копию печатного издания, предварительно загруженную в хранилище федеральной государственной информационной системы «Единая информационно-аналитическая система «Федеральный орган регулирования - региональные органы регулирования - субъекты регулирования» (далее – ФГИС ЕИАС), с опубликованной информацией.\nВ случае публикации информации в нескольких печатных изданиях информация по каждому из них указывается в отдельной строке.",null,{"$f":"IF(ISERROR(INDEX(kind_of_nameforms,MATCH(E12,kind_of_forms,0),1)),\"\",INDEX(kind_of_nameforms,MATCH(E12,kind_of_forms,0),1))","v":""}]
[null,null,null,null,"Добавить строку"]
[]
[null,null,null,null,"2 В данной форме публикуется информация по каждой из форм раскрытия, данные в которой относятся к муниципальному образованию, в котором отсутствует доступ в информационно-телекоммуникационную сеть «Интернет» (далее – сеть «Интернет»)."]

{"sheet":"Сведения об изменении","index":11,"n_rows":14,"n_cols":5,"rows_kept":14,"cut":false,"hidden":true,"merged":[[6,3,6,4],[7,3,7,4]]}
[]
[]
[]
[]
[]
[]
[null,null,null,"Сведения об изменениях в первоначально опубликованной информации"]
[null,null,null,{"$f":"IF(org=0,\"Не определено\",org)","v":"АО \"ИГТСК\""}]
[]
[null,null,null,"№ п/п","Сведения"]
[null,null,null,"1","2"]
[null,null,null,0]
[null,null,null,1]
[null,null,null,null,"Добавить строку"]

{"sheet":"Комментарии","index":12,"n_rows":14,"n_cols":8,"rows_kept":14,"cut":false,"hidden":false,"merged":[[6,3,6,4],[7,3,7,4]]}
[]
[]
[]
[]
[]
[]
[null,null,null,"Комментарии"]
[null,null,null,{"$f":"IF(org=0,\"Не определено\",org)","v":"АО \"ИГТСК\""}]
[]
[null,null,null,"№ п/п","Комментарий"]
[null,null,null,"1","2"]
[null,null,null,0]
[null,null,"О",1,"В целях корректного отражения полученного финсового результата от регулируемой деятельности убытки от реализации горячей воды  за счет превышения фактического количества тепла на подогрев 1 куб.м. холодной воды над принятым Департаметом энергетики и тарифов Ивановской области при формировании тарифов на горячую воду отражены в соответствующих формах раскрытия информации по тепловой энергии,  за счет превышения фактического количества горячей воды над установленным нормативом потребления горячей воды отражены в соответствующих формах раскрытия информации по теплоносителю.","","",""]
[null,null,null,null,"Добавить"]

{"sheet":"modProv","index":13,"n_rows":0,"n_cols":0,"rows_kept":0,"cut":false,"hidden":true,"merged":[]}

{"sheet":"modReestr","index":14,"n_rows":0,"n_cols":0,"rows_kept":0,"cut":false,"hidden":true,"merged":[]}

{"sheet":"AllSheetsInThisWorkbook","index":15,"n_rows":43,"n_cols":2,"rows_kept":43,"cut":false,"hidden":true,"merged":[]}
["Расчетные листы","Скрытые листы"]
["Инструкция","modList07"]
["Лог обновления","modProv"]
["Титульный","modReestr"]
["Территории","AllSheetsInThisWorkbook"]
["Дифференциация","modCheckCyan"]
["Форма 1.0.1 | Форма 1.4.1","modInfo"]
["Форма 1.4.1","TEHSHEET"]
["Форма 1.4.2","modfrmSelectData"]
["Форма 1.5","modList06"]
["Форма 1.6","modList01"]
["Форма 1.0.2","modList05"]
["Сведения об изменении","modList08"]
["Комментарии","et_union_hor"]
["Проверка","et_union_vert"]
[null,"modList00"]
[null,"modList02"]
[null,"modList03"]
[null,"modList04"]
[null,"modList09"]
[null,"modHTTP"]
[null,"modfrmRegion"]
[null,"MR_LIST"]
[null,"REESTR_VT"]
[null,"REESTR_VED"]
[null,"modfrmReestrObj"]
[null,"DataOrg"]
[null,"modfrmReestr"]
[null,"modUpdTemplMain"]
[null,"REESTR_ORG"]
[null,"modClassifierValidate"]
[null,"modHyp"]
[null,"modfrmDateChoose"]
[null,"modComm"]
[null,"modThisWorkbook"]
[null,"REESTR_MO"]
[null,"REESTR_MO_FILTER"]
[null,"modfrmReestrMR"]
[null,"modServiceModule"]
[null,"modfrmCheckUpdates"]
[null,"REESTR_DS"]
[null,"REESTR_CHS"]
[null,"REESTR_LINK"]

{"sheet":"modCheckCyan","index":16,"n_rows":175,"n_cols":1,"rows_kept":175,"cut":false,"hidden":true,"merged":[]}
[]
[{"$f":"IF(#REF!=\"\",1,0)","v":{"$error":"#REF!"}}]
[{"$f":"IF('Сведения об изменении'!$E$13=\"\",1,0)","v":1}]
[{"$f":"IF(#REF!=\"\",1,0)","v":{"$error":"#REF!"}}]
[{"$f":"IF(#REF!=\"\",1,0)","v":{"$error":"#REF!"}}]
[{"$f":"IF(#REF!=\"\",1,0)","v":{"$error":"#REF!"}}]
[{"$f":"IF(#REF!=\"\",1,0)","v":{"$error":"#REF!"}}]
[{"$f":"IF('Форма 1.4.1'!$G$17=\"\",1,0)","v":0}]
[{"$f":"IF('Форма 1.4.1'!$H$17=\"\",1,0)","v":0}]
[{"$f":"IF('Форма 1.4.1'!$I$17=\"\",1,0)","v":0}]
[{"$f":"IF('Форма 1.4.1'!$G$19=\"\",1,0)","v":0}]
[{"$f":"IF('Форма 1.4.1'!$H$19=\"\",1,0)","v":0}]
[{"$f":"IF('Форма 1.4.1'!$I$19=\"\",1,0)","v":0}]
[{"$f":"IF('Форма 1.4.1'!$G$20=\"\",1,0)","v":0}]
[{"$f":"IF('Форма 1.4.1'!$H$20=\"\",1,0)","v":0}]
[{"$f":"IF('Форма 1.4.1'!$I$20=\"\",1,0)","v":0}]
[{"$f":"IF('Форма 1.4.1'!$G$21=\"\",1,0)","v":0}]
[{"$f":"IF('Форма 1.4.1'!$H$21=\"\",1,0)","v":0}]
[{"$f":"IF('Форма 1.4.1'!$I$21=\"\",1,0)","v":0}]
[{"$f":"IF('Форма 1.4.1'!$G$22=\"\",1,0)","v":0}]
[{"$f":"IF('Форма 1.4.1'!$H$22=\"\",1,0)","v":0}]
[{"$f":"IF('Форма 1.4.1'!$I$22=\"\",1,0)","v":0}]
[{"$f":"IF('Форма 1.4.1'!$G$23=\"\",1,0)","v":0}]
[{"$f":"IF('Форма 1.4.1'!$H$23=\"\",1,0)","v":0}]
[{"$f":"IF('Форма 1.4.1'!$I$23=\"\",1,0)","v":0}]
[{"$f":"IF('Форма 1.4.1'!$G$24=\"\",1,0)","v":0}]
[{"$f":"IF('Форма 1.4.1'!$H$24=\"\",1,0)","v":0}]
[{"$f":"IF('Форма 1.4.1'!$I$24=\"\",1,0)","v":0}]
[{"$f":"IF('Форма 1.4.1'!$G$25=\"\",1,0)","v":0}]
[{"$f":"IF('Форма 1.4.1'!$H$25=\"\",1,0)","v":0}]
[{"$f":"IF('Форма 1.4.1'!$I$25=\"\",1,0)","v":0}]
[{"$f":"IF('Форма 1.4.1'!$G$26=\"\",1,0)","v":0}]
[{"$f":"IF('Форма 1.4.1'!$H$26=\"\",1,0)","v":0}]
[{"$f":"IF('Форма 1.4.1'!$I$26=\"\",1,0)","v":0}]
[{"$f":"IF('Форма 1.4.1'!$G$27=\"\",1,0)","v":0}]
[{"$f":"IF('Форма 1.4.1'!$H$27=\"\",1,0)","v":0}]
[{"$f":"IF('Форма 1.4.1'!$I$27=\"\",1,0)","v":0}]
[{"$f":"IF('Форма 1.4.1'!$G$28=\"\",1,0)","v":0}]
[{"$f":"IF('Форма 1.4.1'!$H$28=\"\",1,0)","v":0}]
[{"$f":"IF('Форма 1.4.1'!$I$28=\"\",1,0)","v":0}]
[{"$f":"IF('Форма 1.4.1'!$G$29=\"\",1,0)","v":0}]
[{"$f":"IF('Форма 1.4.1'!$H$29=\"\",1,0)","v":0}]
[{"$f":"IF('Форма 1.4.1'!$I$29=\"\",1,0)","v":0}]
[{"$f":"IF('Форма 1.4.1'!$G$30=\"\",1,0)","v":0}]
[{"$f":"IF('Форма 1.4.1'!$H$30=\"\",1,0)","v":0}]
[{"$f":"IF('Форма 1.4.1'!$I$30=\"\",1,0)","v":0}]
[{"$f":"IF('Форма 1.4.1'!$G$31=\"\",1,0)","v":0}]
[{"$f":"IF('Форма 1.4.1'!$H$31=\"\",1,0)","v":0}]
[{"$f":"IF('Форма 1.4.1'!$I$31=\"\",1,0)","v":0}]
[{"$f":"IF('Форма 1.4.1'!$G$32=\"\",1,0)","v":0}]
[{"$f":"IF('Форма 1.4.1'!$H$32=\"\",1,0)","v":0}]
[{"$f":"IF('Форма 1.4.1'!$I$32=\"\",1,0)","v":0}]
[{"$f":"IF('Форма 1.4.1'!$G$33=\"\",1,0)","v":0}]
[{"$f":"IF('Форма 1.4.1'!$H$33=\"\",1,0)","v":0}]
[{"$f":"IF('Форма 1.4.1'!$I$33=\"\",1,0)","v":0}]
[{"$f":"IF('Форма 1.4.1'!$G$34=\"\",1,0)","v":0}]
[{"$f":"IF('Форма 1.4.1'!$H$34=\"\",1,0)","v":0}]
[{"$f":"IF('Форма 1.4.1'!$I$34=\"\",1,0)","v":0}]
[{"$f":"IF('Форма 1.4.1'!$G$35=\"\",1,0)","v":0}]
[{"$f":"IF('Форма 1.4.1'!$H$35=\"\",1,0)","v":0}]
[{"$f":"IF('Форма 1.4.1'!$I$35=\"\",1,0)","v":0}]
[{"$f":"IF('Форма 1.4.1'!$G$36=\"\",1,0)","v":0}]
[{"$f":"IF('Форма 1.4.1'!$H$36=\"\",1,0)","v":0}]
[{"$f":"IF('Форма 1.4.1'!$I$36=\"\",1,0)","v":0}]
[{"$f":"IF('Форма 1.4.1'!$G$37=\"\",1,0)","v":0}]
[{"$f":"IF('Форма 1.4.1'!$H$37=\"\",1,0)","v":0}]
[{"$f":"IF('Форма 1.4.1'!$I$37=\"\",1,0)","v":0}]
[{"$f":"IF('Форма 1.4.1'!$G$38=\"\",1,0)","v":0}]
[{"$f":"IF('Форма 1.4.1'!$H$38=\"\",1,0)","v":0}]
[{"$f":"IF('Форма 1.4.1'!$I$38=\"\",1,0)","v":0}]
[{"$f":"IF('Форма 1.4.1'!$G$40=\"\",1,0)","v":0}]
[{"$f":"IF('Форма 1.4.1'!$H$40=\"\",1,0)","v":0}]
[{"$f":"IF('Форма 1.4.1'!$I$40=\"\",1,0)","v":0}]
[{"$f":"IF('Форма 1.4.1'!$G$46=\"\",1,0)","v":0}]
[{"$f":"IF('Форма 1.4.1'!$H$46=\"\",1,0)","v":0}]
[{"$f":"IF('Форма 1.4.1'!$I$46=\"\",1,0)","v":0}]
[{"$f":"IF('Форма 1.4.1'!$G$47=\"\",1,0)","v":0}]
[{"$f":"IF('Форма 1.4.1'!$H$47=\"\",1,0)","v":0}]
[{"$f":"IF('Форма 1.4.1'!$I$47=\"\",1,0)","v":0}]
[{"$f":"IF('Форма 1.4.1'!$G$48=\"\",1,0)","v":0}]
[{"$f":"IF('Форма 1.4.1'!$H$48=\"\",1,0)","v":0}]
[{"$f":"IF('Форма 1.4.1'!$I$48=\"\",1,0)","v":0}]
[{"$f":"IF('Форма 1.4.1'!$G$49=\"\",1,0)","v":0}]
[{"$f":"IF('Форма 1.4.1'!$H$49=\"\",1,0)","v":0}]
[{"$f":"IF('Форма 1.4.1'!$I$49=\"\",1,0)","v":0}]
[{"$f":"IF('Форма 1.4.1'!$G$50=\"\",1,0)","v":0}]
[{"$f":"IF('Форма 1.4.1'!$H$50=\"\",1,0)","v":0}]
[{"$f":"IF('Форма 1.4.1'!$I$50=\"\",1,0)","v":0}]
[{"$f":"IF('Форма 1.4.1'!$G$51=\"\",1,0)","v":0}]
[{"$f":"IF('Форма 1.4.1'!$H$51=\"\",1,0)","v":0}]
[{"$f":"IF('Форма 1.4.1'!$I$51=\"\",1,0)","v":0}]
[{"$f":"IF('Форма 1.4.1'!$G$52=\"\",1,0)","v":0}]
[{"$f":"IF('Форма 1.4.1'!$H$52=\"\",1,0)","v":0}]
[{"$f":"IF('Форма 1.4.1'!$I$52=\"\",1,0)","v":0}]
[{"$f":"IF('Форма 1.4.1'!$G$53=\"\",1,0)","v":0}]
[{"$f":"IF('Форма 1.4.1'!$H$53=\"\",1,0)","v":0}]
[{"$f":"IF('Форма 1.4.1'!$I$53=\"\",1,0)","v":0}]
[{"$f":"IF('Форма 1.4.1'!$G$54=\"\",1,0)","v":0}]
[{"$f":"IF('Форма 1.4.1'!$H$54=\"\",1,0)","v":0}]
[{"$f":"IF('Форма 1.4.1'!$I$54=\"\",1,0)","v":0}]
[{"$f":"IF('Форма 1.4.1'!$G$55=\"\",1,0)","v":0}]
[{"$f":"IF('Форма 1.4.1'!$H$55=\"\",1,0)","v":0}]
[{"$f":"IF('Форма 1.4.1'!$I$55=\"\",1,0)","v":0}]
[{"$f":"IF('Форма 1.4.1'!$G$56=\"\",1,0)","v":0}]
[{"$f":"IF('Форма 1.4.1'!$H$56=\"\",1,0)","v":0}]
[{"$f":"IF('Форма 1.4.1'!$I$56=\"\",1,0)","v":0}]
[{"$f":"IF('Форма 1.4.1'!$G$57=\"\",1,0)","v":0}]
[{"$f":"IF('Форма 1.4.1'!$H$57=\"\",1,0)","v":0}]
[{"$f":"IF('Форма 1.4.1'!$I$57=\"\",1,0)","v":0}]
[{"$f":"IF('Форма 1.4.1'!$G$58=\"\",1,0)","v":0}]
[{"$f":"IF('Форма 1.4.1'!$H$58=\"\",1,0)","v":0}]
[{"$f":"IF('Форма 1.4.1'!$I$58=\"\",1,0)","v":0}]
[{"$f":"IF('Форма 1.4.1'!$G$59=\"\",1,0)","v":0}]
[{"$f":"IF('Форма 1.4.1'!$H$59=\"\",1,0)","v":0}]
[{"$f":"IF('Форма 1.4.1'!$I$59=\"\",1,0)","v":0}]
[{"$f":"IF('Форма 1.4.1'!$G$60=\"\",1,0)","v":0}]
[{"$f":"IF('Форма 1.4.1'!$H$60=\"\",1,0)","v":0}]
[{"$f":"IF('Форма 1.4.1'!$I$60=\"\",1,0)","v":0}]
[{"$f":"IF('Форма 1.4.1'!$G$61=\"\",1,0)","v":0}]
[{"$f":"IF('Форма 1.4.1'!$H$61=\"\",1,0)","v":0}]
[{"$f":"IF('Форма 1.4.1'!$I$61=\"\",1,0)","v":0}]
[{"$f":"IF('Форма 1.5'!$H$11=\"\",1,0)","v":0}]
[{"$f":"IF('Форма 1.5'!$I$11=\"\",1,0)","v":0}]
[{"$f":"IF('Форма 1.5'!$G$13=\"\",1,0)","v":0}]
[{"$f":"IF('Форма 1.5'!$H$13=\"\",1,0)","v":0}]
[{"$f":"IF('Форма 1.5'!$I$13=\"\",1,0)","v":0}]
[{"$f":"IF('Форма 1.5'!$G$14=\"\",1,0)","v":0}]
[{"$f":"IF('Форма 1.5'!$H$14=\"\",1,0)","v":0}]
[{"$f":"IF('Форма 1.5'!$I$14=\"\",1,0)","v":0}]
[{"$f":"IF('Форма 1.5'!$G$15=\"\",1,0)","v":0}]
[{"$f":"IF('Форма 1.5'!$H$15=\"\",1,0)","v":0}]
[{"$f":"IF('Форма 1.5'!$I$15=\"\",1,0)","v":0}]
[{"$f":"IF('Форма 1.5'!$G$16=\"\",1,0)","v":0}]
[{"$f":"IF('Форма 1.5'!$H$16=\"\",1,0)","v":0}]
[{"$f":"IF('Форма 1.5'!$I$16=\"\",1,0)","v":0}]
[{"$f":"IF('Форма 1.5'!$G$18=\"\",1,0)","v":0}]
[{"$f":"IF('Форма 1.5'!$H$18=\"\",1,0)","v":0}]
[{"$f":"IF('Форма 1.5'!$I$18=\"\",1,0)","v":0}]
[{"$f":"IF('Форма 1.5'!$G$19=\"\",1,0)","v":0}]
[{"$f":"IF('Форма 1.5'!$H$19=\"\",1,0)","v":0}]
[{"$f":"IF('Форма 1.5'!$I$19=\"\",1,0)","v":0}]
[{"$f":"IF('Форма 1.5'!$G$20=\"\",1,0)","v":0}]
[{"$f":"IF('Форма 1.5'!$H$20=\"\",1,0)","v":0}]
[{"$f":"IF('Форма 1.5'!$I$20=\"\",1,0)","v":0}]
[{"$f":"IF('Форма 1.5'!$G$21=\"\",1,0)","v":0}]
[{"$f":"IF('Форма 1.5'!$H$21=\"\",1,0)","v":0}]
[{"$f":"IF('Форма 1.5'!$I$21=\"\",1,0)","v":0}]
[{"$f":"IF('Форма 1.5'!$G$22=\"\",1,0)","v":0}]
[{"$f":"IF('Форма 1.5'!$H$22=\"\",1,0)","v":0}]
[{"$f":"IF('Форма 1.5'!$I$22=\"\",1,0)","v":0}]
[{"$f":"IF('Форма 1.5'!$G$23=\"\",1,0)","v":0}]
[{"$f":"IF('Форма 1.5'!$H$23=\"\",1,0)","v":0}]
[{"$f":"IF('Форма 1.5'!$I$23=\"\",1,0)","v":0}]
[{"$f":"IF('Форма 1.5'!$G$24=\"\",1,0)","v":0}]
[{"$f":"IF('Форма 1.5'!$H$24=\"\",1,0)","v":0}]
[{"$f":"IF('Форма 1.5'!$I$24=\"\",1,0)","v":0}]
[{"$f":"IF('Форма 1.5'!$G$25=\"\",1,0)","v":0}]
[{"$f":"IF('Форма 1.5'!$H$25=\"\",1,0)","v":0}]
[{"$f":"IF('Форма 1.5'!$I$25=\"\",1,0)","v":0}]
[{"$f":"IF('Форма 1.5'!$G$11=\"\",1,0)","v":0}]
[{"$f":"IF('Форма 1.6'!$I$11=\"\",1,0)","v":1}]
[{"$f":"IF('Форма 1.6'!$I$12=\"\",1,0)","v":1}]
[{"$f":"IF('Форма 1.6'!$I$13=\"\",1,0)","v":1}]
[{"$f":"IF('Форма 1.6'!$I$15=\"\",1,0)","v":1}]
[{"$f":"IF('Форма 1.6'!$I$16=\"\",1,0)","v":1}]
[{"$f":"IF('Форма 1.6'!$I$17=\"\",1,0)","v":1}]
[{"$f":"IF('Форма 1.6'!$I$18=\"\",1,0)","v":1}]
[{"$f":"IF('Форма 1.6'!$G$23=\"\",1,0)","v":1}]
[{"$f":"IF('Форма 1.6'!$G$24=\"\",1,0)","v":1}]
[{"$f":"IF('Форма 1.6'!$I$24=\"\",1,0)","v":1}]
[{"$f":"IF('Форма 1.6'!$G$79=\"\",1,0)","v":1}]
[{"$f":"IF('Форма 1.6'!$I$80=\"\",1,0)","v":1}]
[{"$f":"IF('Форма 1.6'!$I$81=\"\",1,0)","v":1}]
[{"$f":"IF('Форма 1.6'!$I$82=\"\",1,0)","v":1}]
[{"$f":"IF('Форма 1.6'!$I$83=\"\",1,0)","v":1}]

{"sheet":"modInfo","index":17,"n_rows":11,"n_cols":2,"rows_kept":11,"cut":false,"hidden":true,"merged":[[4,3,4,10],[0,3,0,10],[1,3,1,10],[2,3,2,10],[3,3,3,10]]}
[null,"Территории"]
[1,"Наименование территории оказания услуг для целей идентификации"]
[2,"Муниципальные районы и муниципальные образования, на территории которых осуществляется оказание услуг"]
[null,"Дифференциация"]
[1,"В случае, если регулируемая организация осуществляет несколько видов деятельности, информация о которых подлежит раскрытию, информация по каждому виду деятельности раскрывается отдельно."]
[2,"Поле заполняется выбором значений из списка. Если значений для выбора нет - убедитесь, что лист \"Территории\" заполнен."]
[3,"Условное наименование централизованной системы коммунальной инфраструктуры для целей идентификации."]
[4,"В случае, если регулируемыми организациями оказываются услуги по нескольким технологически не связанным между собой  централизованным системам коммунальной инфраструктуры и если в отношении указанных централизованных систем устанавливаются различные тарифы, то информация раскрывается отдельно по каждой централизованной системе коммунальной инфраструктуры."]
[null,"Сведения об изменении"]
[1,"Лист заполняется в случае, если на Титульном листе в поле \"Тип отчета\" выбрано значение «Изменения в раскрытой ранее информации»."]
[null,"Нет доступных обновлений, версия отчёта актуальна"]

{"sheet":"TEHSHEET","index":18,"n_rows":87,"n_cols":23,"rows_kept":87,"cut":false,"hidden":true,"merged":[[0,18,0,19],[0,21,0,22]]}
["REGION",null,"year_list","logical","Месяц\n(MONTH)","Квартал\n(QUARTER)","Месяц\n(kind_of_publication)","Единица измерения объема оказываемых услуг ГВС\n/kind_of_unit_GVS/","Вид тарифа\n/list_of_tariff/","mr_id","версия шаблона\n (DocProp_Version)","0.1","Тип отчета\ndata_type",null,"Источники финансирования\n/source_of_funding/","цель инвестиционной программы /kind_of_purchase_method/",null,null,"Перечень форм\n(kind_of_forms)",null,null,"цель инвестиционной программы /objective_of_IPR/"]
["Алтайский край",null,2017,"да","январь","I квартал","На официальном сайте организации","тыс.куб.м/сутки",null,52,"код шаблона\n(DocProp_TemplateCode)","FAS.JKH.OPEN.INFO.BALANCE.HVS","первичное раскрытие информации",null,"кредиты банков","Торги/аукционы",null,null,"Форма 1.0.1","Основные параметры раскрываемой информации",null,"автоматизация (с уменьшением штата)",false]
["Амурская область",null,2018,"нет","февраль","II квартал","На сайте регулирующего органа","Гкал/час","Без дифференциации","sys_id","сфера\n(TSphere)","ХВС","изменения в раскрытой ранее информации",null,"кредиты иностранных банков","Прямые договора без торгов",null,null,"Форма 1.4.1","Информация об основных показателях финансово-хозяйственной деятельности регулируемой организации, включая структуру основных производственных затрат (в части регулируемого вида деятельности)",null,"уменьшение удельных затрат (повышение КПД)",false]
["Архангельская область",null,2019,null,"март","III квартал",null,"куб.м/час",null,104,"сфера(латиница)\n(TSphere_trans)","VS",null,null,"заемные средства др. организаций","Прочее",null,null,"Форма 1.4.2","Информация о расходах на капитальный и текущий ремонт основных производственных средств, расходах на услуги производственного характера",null,"уменьшение издержек на производство",false]
["Астраханская область",null,2020,null,"апрель","IV квартал",null,null,null,null,"сфера расширено\n(TSphere_full)",null,null,null,"федеральный бюджет",null,null,null,"Форма 1.5","Информация об основных потребительских характеристиках регулируемых товаров и услуг регулируемой организации и их соответствии установленным требованиям",null,"снижение аварийности",false]
["Белгородская область",null,null,null,"май",null,null,null,null,null,null,null,null,null,"бюджет субъекта Российской Федерации",null,null,null,"Форма 1.6","Информация об инвестиционных программах регулируемой организации",null,"прочее",false]
["Брянская область",null,null,null,"июнь",null,null,null,null,null,null,null,null,null,"бюджет муниципального образования"]
["Владимирская область",null,null,null,"июль",null,null,null,null,null,"true",null,null,null,"средства внебюджетных фондов"]
["Волгоградская область",null,null,null,"август",null,null,null,null,null,null,null,null,null,"прибыль, направленная на инвестиции"]
["Вологодская область",null,null,null,"сентябрь",null,null,null,null,null,null,null,null,null,"амортизация"]
["Воронежская область",null,null,null,"октябрь",null,null,null,null,null,null,null,null,null,"инвестиционная надбавка к тарифу"]
["г.Байконур",null,null,null,"ноябрь",null,null,null,null,null,null,null,null,null,"плата за подключение (технологическое присоединение)"]
["г. Москва",null,null,null,"декабрь",null,null,null,null,null,null,null,null,null,"прочие средства"]
["г.Санкт-Петербург"]
["г.Севастополь"]
["Еврейская автономная область",null,null,null,null,null,"Текущая дата"]
["Забайкальский край",null,"Организация",{"$f":"IF(f_year = \"\",\"\", \"01.01.\"&f_year)","v":"01.01.2018"},{"$f":"IF(f_year = \"\",\"\",\"31.12.\"& f_year)","v":"31.12.2018"},null,"30.04.2019 14:32:09"]
["Ивановская область"]
["Иркутская область",null,null,null,null,null,"Признак изменения данных на листе Доступ к товарам и услугам"]
["Кабардино-Балкарская республика",null,"Виды деятельности",null,null,null,true]
["Калининградская область"]
["Калужская область"]
["Камчатский край"]
["Карачаево-Черкесская республика"]
["Кемеровская область"]
["Кировская область"]
["Костромская область"]
["Краснодарский край"]
["Красноярский край"]
["Курганская область"]
["Курская область"]
["Ленинградская область"]
["Липецкая область"]
["Магаданская область"]
["Московская область"]
["Мурманская область"]
["Ненецкий автономный округ"]
["Нижегородская область"]
["Новгородская область"]
["Новосибирская область"]
["Омская область"]
["Оренбургская область"]
["Орловская область"]
["Пензенская область"]
["Пермский край"]
["Приморский край"]
["Псковская область"]
["Республика Адыгея"]
["Республика Алтай"]
["Республика Башкортостан"]
["Республика Бурятия"]
["Республика Дагестан"]
["Республика Ингушетия"]
["Республика Калмыкия"]
["Республика Карелия"]
["Республика Коми"]
["Республика Крым"]
["Республика Марий Эл"]
["Республика Мордовия"]
["Республика Саха (Якутия)"]
["Республика Северная Осетия-Алания"]
["Республика Татарстан"]
["Республика Тыва"]
["Республика Хакасия"]
["Ростовская область"]
["Рязанская область"]
["Самарская область"]
["Саратовская область"]
["Сахалинская область"]
["Свердловская область"]
["Смоленская область"]
["Ставропольский край"]
["Тамбовская область"]
["Тверская область"]
["Томская область"]
["Тульская область"]
["Тюменская область"]
["Удмуртская республика"]
["Ульяновская область"]
["Хабаровский край"]
["Ханты-Мансийский автономный округ"]
["Челябинская область"]
["Чеченская республика"]
["Чувашская республика"]
["Чукотский автономный округ"]
["Ямало-Ненецкий автономный округ"]
["Ярославская область"]

{"sheet":"modfrmSelectData","index":19,"n_rows":0,"n_cols":0,"rows_kept":0,"cut":false,"hidden":true,"merged":[]}

{"sheet":"modList06","index":20,"n_rows":0,"n_cols":0,"rows_kept":0,"cut":false,"hidden":true,"merged":[]}

{"sheet":"modList01","index":21,"n_rows":0,"n_cols":0,"rows_kept":0,"cut":false,"hidden":true,"merged":[]}

{"sheet":"modList08","index":22,"n_rows":0,"n_cols":0,"rows_kept":0,"cut":false,"hidden":true,"merged":[]}

{"sheet":"et_union_hor","index":23,"n_rows":92,"n_cols":34,"rows_kept":92,"cut":false,"hidden":true,"merged":[[77,4,77,17],[78,20,84,20],[78,21,84,21],[81,7,82,7],[78,6,78,15],[77,3,91,3],[77,28,91,28],[80,4,83,4],[80,5,83,5],[80,6,83,6],[80,18,83,18],[81,8,82,8],[87,4,90,4],[87,5,90,5],[87,6,90,6],[87,18,90,18],[88,8,89,8],[88,9,89,9],[88,10,89,10],[80,11,80,12],[87,11,87,12],[85,6,85,15],[81,9,82,9],[81,10,82,10],[85,20,91,20],[85,21,91,21],[88,7,89,7],[67,3,73,3],[67,28,73,28],[68,4,68,15],[71,4,71,15],[67,4,67,17],[68,20,70,20],[68,21,70,21],[71,20,73,20],[71,21,73,21],[50,3,50,5],[50,6,51,6],[14,2,15,2],[14,3,15,3],[14,4,15,4],[19,2,20,2],[19,5,20,5],[34,6,35,6],[19,6,20,6],[49,3,49,6],[34,7,35,7],[34,8,35,8],[34,9,35,9],[28,8,29,8],[28,9,29,9],[19,7,20,7],[28,3,30,3],[28,4,30,4],[28,5,30,5],[28,6,29,6],[28,7,29,7]]}
[]
[]
["et_Comm"]
[]
[]
[]
["et_List04"]
[]
[]
[]
[]
[]
["et_List09_0"]
[]
[null,"auto",null,1,null,null,0,null,null,"0",null,null,{"$f":"mergeValue(H15)","v":{"$error":"#NAME?"}},null,null,{"$f":"IF(ISERROR(MATCH(MID(Q15,1,250),MID(note_ter,1,250),0)),\"n\",\"y\")","v":"n"},null,{"$f":"K15&\"(\"&L15&\")\"","v":"()"}]
[null,null,null,null,null,null,null,"Добавить МР"]
[]
["et_List09_1"]
[]
[null,"auto",null,null,null,null,0,null,null,"0",null,null,{"$f":"mergeValue(H20)","v":{"$error":"#NAME?"}},null,null,null,null,{"$f":"K20&\"(\"&L20&\")\"","v":"()"}]
[null,null,null,null,null,null,null,null,null,null,"Добавить МО"]
[]
["et_List09_2"]
[]
[null,"auto",null,null,null,null,null,null,null,0,null,null,{"$f":"mergeValue(H25)","v":{"$error":"#NAME?"}},null,null,null,null,{"$f":"K25&\" (\"&L25&\")\"","v":" ()"}]
[]
["et_List07_1"]
[]
[null,null,null,"1",null,"нет",null,1,null,"нет",null,"1",null,null,null,null,null,null,null,null,null,null,null,null,"a",1705000]
[null,null,null,null,null,null,null,null,null,null,null,null,"Добавить централизованную систему коммунальной инфраструктуры"]
[null,null,null,null,null,null,null,null,"Добавить описание территории оказания услуг"]
[]
["et_List07_4"]
[]
[null,null,null,null,null,null,null,1,null,"нет",null,"1",null,null,null,null,null,null,null,null,null,null,null,null,"a",1705000]
[null,null,null,null,null,null,null,null,null,null,null,null,"Добавить централизованную систему коммунальной инфраструктуры"]
[]
["et_List07_5"]
[]
[null,null,null,null,null,null,null,null,null,null,null,"1",null,null,null,null,null,null,null,null,null,null,null,null,"a",1705000]
[]
[]
["et_List03"]
[]
["3","",null,null,null,null,null,null,null,null,null,null,{"$f":"IF(ISERROR(INDEX(kind_of_nameforms,MATCH(E45,kind_of_forms,0),1)),\"\",INDEX(kind_of_nameforms,MATCH(E45,kind_of_forms,0),1))","v":""}]
[]
["et_List02_st","et_List02_ter","et_List02_mr","et_List02_mo"]
[]
[]
[null,null,null,"Форма 1.0.1"]
[null,null,null,"Параметры формы",null,null,"Описание параметров формы"]
["\\",null,null,"№ п/п",null,"Информация"]
[null,null,null,"1",2,3,4]
[null,null,null,1,"Дата заполнения/внесения изменений",{"$f":"IF(form_up_date=\"\",\"\",form_up_date)","v":"30.04.2019"},"Указывается календарная дата первичного заполнения или внесения изменений в форму в виде «ДД.ММ.ГГГГ»."]
[null,null,null,"2.1","Наименование централизованной системы коммунальной инфраструктуры",null,"Указывается наименование централизованной системы холодного водоснабжения/горячего водоснабжения/водоотведения/теплоснабжения, к которой относится размещаемая информация.\nВ случае наличия нескольких централизованных систем коммунальной инфраструктуры, информация по каждой из них указывается в отдельной строке. "]
[null,null,null,"3.1","Наименование регулируемого вида деятельности",null,"Указывается наименование вида регулируемой деятельности."]
[null,null,null,"4.1","Территория оказания услуги по регулируемому виду деятельности","x"]
[null,null,null,{"$f":"D57&\".1\"","v":"4.1.1"},"Субъект РФ",{"$f":"IF(region_name=\"\",\"\",region_name)","v":"Ивановская область"},"Указывается наименование субъекта Российской Федерации"]
[null,null,null,"4.1.1.1","муниципальный район",null,"Указывается наименование муниципального района, на территории которого организация оказывает услуги по регулируемому виду деятельности."]
[null,null,null,"4.1.1.1.1","муниципальное образование",null,"Указывается наименование и код муниципального района, муниципального образования в соответствии с Общероссийским классификатором территорий муниципальных образований (далее - ОКТМО), входящего в муниципальный район, на территории которого организация оказывает услуги по регулируемому виду деятельности.\nВ случае оказания услуг по регулируемому виду деятельности на территории нескольких муниципальных районов (муниципальных образований) данные по каждому их них указываются в отдельной строке."]
[]
[]
[]
[]
[]
["et_List05_4"]
[]
[null,null,null,"1",null,null,null,null,null,null,null,null,null,null,null,null,null,null,null,null,null,null,null,null,null,null,null,null,null,null,"",null,"NOTSHOW",3]
[null,null,null,null,"Информация об объемах товаров и услуг, их стоимости и способах приобретения у организаций, в том числе:",null,null,null,null,null,null,null,null,null,null,null,{"$f":"SUMIF(T70:T71,\"i\",Q70:Q71)","v":0},null,"Указывается сумма стоимости приобретения товаров и услуг у организаций, сумма оплаты услуг которых превышает 20% суммы расходов на капитальный и текущий ремонт основных производственных средства","i",1,{"$f":"INDEX(List01_flag_index_1,1,MATCH(A68,List01_NumberColumns,0))","v":{"$error":"#N/A"}}]
[null,null,null,null,null,0]
[]
[null,null,null,null,"Расходы на услуги производственного характера, выполняемые по договорам с организациями на проведение регламентных работ в рамках технологического процесса. Из них товары и услуги, приобретенные у организаций, сумма оплаты услуг которых превышает 20% суммы расходов по статье:",null,null,null,null,null,null,null,null,null,null,null,{"$f":"SUMIF(T73:T74,\"i\",Q73:Q74)","v":0},null,"Указывается сумма стоимости приобретения товаров и услуг у организаций, сумма оплаты услуг которых превышает 20% суммы расходов на капитальный и текущий ремонт основных производственных средства","i",2,{"$f":"INDEX(List01_flag_index_2,1,MATCH(A68,List01_NumberColumns,0))","v":{"$error":"#N/A"}}]
[null,null,null,null,null,0]
[]
[]
["et_List05_4"]
[]
[null,null,null,"1",null,null,null,null,null,null,null,null,null,null,null,null,null,null,null,null,null,null,null,null,null,null,null,null,null,null,"",null,"NOTSHOW",3]
[null,null,null,null,null,1,"Информация об объемах товаров и услуг, их стоимости и способах приобретения у организаций, в том числе:",null,null,null,null,null,null,null,null,null,{"$f":"SUMIF(T80:T85,\"i\",Q80:Q85)","v":0},null,"Указывается сумма стоимости приобретения товаров и услуг у организаций, сумма оплаты услуг которых превышает 20% суммы расходов на капитальный и текущий ремонт основных производственных средства","i",1,{"$f":"INDEX(List01_flag_index_1,1,MATCH(A78,List01_NumberColumns,0))","v":{"$error":"#N/A"}}]
[null,null,null,null,null,0]
[null,null,null,null,null,"1.1",null,null,"1","Итого по поставщику, в том числе","х","х",null,"х","х","х",{"$f":"SUM(Q82:Q84)","v":0},{"$f":"nerr(Q81/List01_costs_OPS)*100","v":{"$error":"#NAME?"}},"Указывается информация отдельно по организациям, сумма оплаты услуг которых превышает 20% суммы расходов на капитальный и текущий ремонт основных производственных средства.\nСпособ приобретения определяется из перечня: Торги/аукционы; Прямые договора без торгов; Прочее\nВ случае наличия нескольких поставщиков, договоров, товаров и (или) услуг информация по ним указывается в отдельных строках.\n","i"]
[null,null,null,null,null,null,null,null,"1.1",null,null,null,"1",null,null,null,null,{"$f":"nerr(costs_OPS/List01_costs_OPS)*100","v":{"$error":"#NAME?"}}]
[null,null,null,null,null,null,null,null,null,null,null,null,null,"Добавить товар/услугу"]
[null,null,null,null,null,null,null,null,null,"Добавить способ"]
[null,null,null,null,null,null,"Добавить поставщика"]
[null,null,null,null,null,2,"Расходы на услуги производственного характера, выполняемые по договорам с организациями на проведение регламентных работ в рамках технологического процесса. Из них товары и услуги, приобретенные у организаций, сумма оплаты услуг которых превышает 20% суммы расходов по статье:",null,null,null,null,null,null,null,null,null,{"$f":"SUMIF(T87:T92,\"i\",Q87:Q92)","v":0},null,"Указывается сумма стоимости приобретения товаров и услуг у организаций, сумма оплаты услуг которых превышает 20% суммы расходов на услуги производственного характера","i",2,{"$f":"INDEX(List01_flag_index_2,1,MATCH(A78,List01_NumberColumns,0))","v":{"$error":"#N/A"}}]
[null,null,null,null,null,0]
[null,null,null,null,null,"2.1",null,null,"1","Итого по поставщику, в том числе","х","х",null,"х","х","х",{"$f":"SUM(Q89:Q91)","v":0},{"$f":"nerr(Q88/List01_costs_OPS)*100","v":{"$error":"#NAME?"}},"Указывается информация отдельно по организациям, сумма оплаты услуг которых превышает 20% суммы расходов на услуги производственного характера.\nСпособ приобретения определяется из перечня: Торги/аукционы; Прямые договора без торгов; Прочее\nВ случае наличия нескольких поставщиков, договоров, товаров и (или) услуг информация по ним указывается в отдельных строках.","i"]
[null,null,null,null,null,null,null,null,"1.1",null,null,null,"1",null,null,null,null,{"$f":"nerr(costs_OPS/List01_costs_OPS)*100","v":{"$error":"#NAME?"}}]
[null,null,null,null,null,null,null,null,null,null,null,null,null,"Добавить товар/услугу"]
[null,null,null,null,null,null,null,null,null,"Добавить способ"]
[null,null,null,null,null,null,"Добавить поставщика"]

{"sheet":"et_union_vert","index":24,"n_rows":0,"n_cols":0,"rows_kept":0,"cut":false,"hidden":true,"merged":[]}

{"sheet":"modList00","index":25,"n_rows":0,"n_cols":0,"rows_kept":0,"cut":false,"hidden":true,"merged":[]}

{"sheet":"modList02","index":26,"n_rows":0,"n_cols":0,"rows_kept":0,"cut":false,"hidden":true,"merged":[]}

{"sheet":"modList03","index":27,"n_rows":0,"n_cols":0,"rows_kept":0,"cut":false,"hidden":true,"merged":[]}

{"sheet":"modList04","index":28,"n_rows":0,"n_cols":0,"rows_kept":0,"cut":false,"hidden":true,"merged":[]}

{"sheet":"modList09","index":29,"n_rows":0,"n_cols":0,"rows_kept":0,"cut":false,"hidden":true,"merged":[]}

{"sheet":"modHTTP","index":30,"n_rows":0,"n_cols":0,"rows_kept":0,"cut":false,"hidden":true,"merged":[]}

{"sheet":"modfrmRegion","index":31,"n_rows":0,"n_cols":0,"rows_kept":0,"cut":false,"hidden":true,"merged":[]}

{"sheet":"MR_LIST","index":32,"n_rows":0,"n_cols":0,"rows_kept":0,"cut":false,"hidden":true,"merged":[]}

{"sheet":"REESTR_VT","index":33,"n_rows":0,"n_cols":0,"rows_kept":0,"cut":false,"hidden":true,"merged":[]}

{"sheet":"REESTR_VED","index":34,"n_rows":4,"n_cols":2,"rows_kept":4,"cut":false,"hidden":true,"merged":[]}
["ID_TARIFF_NAME","VED_NAME"]
[4189706,"Горячее водоснабжение"]
[4189705,"Транспортировка"]
[4189707,"Подключение (технологическое присоединение) к централизованной системе горячего водоснабжения"]

{"sheet":"modfrmReestrObj","index":35,"n_rows":0,"n_cols":0,"rows_kept":0,"cut":false,"hidden":true,"merged":[]}

{"sheet":"DataOrg","index":36,"n_rows":0,"n_cols":0,"rows_kept":0,"cut":false,"hidden":true,"merged":[]}

{"sheet":"modfrmReestr","index":37,"n_rows":0,"n_cols":0,"rows_kept":0,"cut":false,"hidden":true,"merged":[]}

{"sheet":"modUpdTemplMain","index":38,"n_rows":0,"n_cols":0,"rows_kept":0,"cut":false,"hidden":true,"merged":[]}

{"sheet":"REESTR_ORG","index":39,"n_rows":94,"n_cols":10,"rows_kept":94,"cut":false,"hidden":true,"merged":[]}
["№","REGION_ID","REGION_NAME","RST_ORG_ID","ORG_NAME","INN_NAME","KPP_NAME","ORG_START_DATE","ORG_END_DATE"]
[1,"2591","Ивановская область","26560525","АО \"ГУ ЖКХ\"","5116000922","511601001","13-05-2009 00:00:00",null,"HOT_VS"]
[2,"2591","Ивановская область","28795512","АО \"ИГТСК\"","3702733445","370201001",null,null,"HOT_VS"]
[3,"2591","Ивановская область","28795526","АО \"ИвГТЭ\"","3702733438","370250001","01-07-2014 00:00:00",null,"HOT_VS"]
[4,"2591","Ивановская область","26356349","АО \"Кинешемская прядильно-ткацкая фабрика\"","3703011227","370301001",null,null,"HOT_VS"]
[5,"2591","Ивановская область","27734219","АО \"Наволокское коммунальное хозяйство\"","3713007692","371301001",null,null,"HOT_VS"]
[6,"2591","Ивановская область","26838066","АО \"РЭУ\"","7714783092","770401001",null,null,"HOT_VS"]
[7,"2591","Ивановская область","26356375","АО \"Ресурсоснабжающая организация\"","3704562555","370401001",null,null,"HOT_VS"]
[8,"2591","Ивановская область","26356467","ЗАО \"ИвТБС\"","3731023506","371101001",null,null,"HOT_VS"]
[9,"2591","Ивановская область","26356335","ЗАО \"УП ЖКХ\"","3702070170","370201001",null,null,"HOT_VS"]
[10,"2591","Ивановская область","26356453","ЗАО \"Электроконтакт\"","3703000592","370301001",null,null,"HOT_VS"]
[11,"2591","Ивановская область","26358406","Ивановский филиал ОАО \"ТГК-6\"","5257072937","370202001",null,null,"HOT_VS"]
[12,"2591","Ивановская область","26356364","МП ЖКХ г. Шуи","3706001530","370601001",null,null,"HOT_VS"]
[13,"2591","Ивановская область","26372358","МУП \"ЖКХ Большеклочковского сельского поселения\"","3724018791","372401001",null,null,"HOT_VS"]
[14,"2591","Ивановская область","28030944","МУП \"ЖКХ Шуйского муниципального района\"","3706019048","370601001","25-04-2012 00:00:00",null,"HOT_VS"]
[15,"2591","Ивановская область","26356437","МУП \"ЖКХ пос. Колобово\"","3725003124","372501001",null,null,"HOT_VS"]
[16,"2591","Ивановская область","28510819","МУП \"Коммунальные системы\"","3701048768","370101001",null,null,"HOT_VS"]
[17,"2591","Ивановская область","31245240","МУП \"Коммунальщик\"","3711024251","371101001",null,null,"HOT_VS"]
[18,"2591","Ивановская область","27556180","МУП \"МПО ЖКХ\"","3704000764","370401001",null,null,"HOT_VS"]
[19,"2591","Ивановская область","30873072","МУП \"МУК\"","3720007252","372001001",null,null,"HOT_VS"]
[20,"2591","Ивановская область","26356414","МУП \"Приволжское ТЭП\"","3719009495","371901001",null,null,"HOT_VS"]
[21,"2591","Ивановская область","30871711","МУП \"Тепловик\"","3704008523","370401001",null,null,"HOT_VS"]
[22,"2591","Ивановская область","28275268","МУП \"Теплосеть\"","3705066140","370501001",null,null,"HOT_VS"]
[23,"2591","Ивановская область","26356434","МУП ЖКХ Тейковского муниципального района","3724004950","372401001",null,null,"HOT_VS"]
[24,"2591","Ивановская область","28286428","МУП ЗГП \"Заволжский коммунальщик\"","3710006210","370301001",null,null,"HOT_VS"]
[25,"2591","Ивановская область","26356323","МУП ОК и ТС г.Вичуга","3701000050","370101001",null,null,"HOT_VS"]
[26,"2591","Ивановская область","26356347","МУП г. Кинешмы \"ОК и ТС\"","3703002014","370301001",null,null,"HOT_VS"]
[27,"2591","Ивановская область","26372316","МУПП \"ЖКХ \"Кохмабытсервис\"","3711004061","373201001",null,null,"HOT_VS"]
[28,"2591","Ивановская область","26383201","ОАО \"Газпром газораспределение Иваново\"","3730006498","370250001",null,null,"HOT_VS"]
[29,"2591","Ивановская область","26559861","ОАО \"Комсервис\"","3711022670","371501001",null,null,"HOT_VS"]
[30,"2591","Ивановская область","26356417","ОАО \"Пучежская МТС\"","3720000137","372001001",null,null,"HOT_VS"]
[31,"2591","Ивановская область","27562160","ОАО \"ТСП\"","3704006981","370401001",null,null,"HOT_VS"]
[32,"2591","Ивановская область","26554393","ОАО \"Тейковское предприятие тепловых сетей\"","3704005258","370401001",null,null,"HOT_VS"]
[33,"2591","Ивановская область","27836230","ОАО \"Энергосервис\"","3705062604","370501001",null,null,"HOT_VS"]
[34,"2591","Ивановская область","31246086","ООО \"Август Т\"","3328446507","332801001",null,null,"HOT_VS"]
[35,"2591","Ивановская область","30847079","ООО \"Альянс\"","3703019628","370301001",null,null,"HOT_VS"]
[36,"2591","Ивановская область","26611155","ООО \"Альянс-Профи\"","3702552872","370201001",null,null,"HOT_VS"]
[37,"2591","Ивановская область","26356419","ООО \"Берег\"","3720003586","372001001",null,null,"HOT_VS"]
[38,"2591","Ивановская область","30399145","ООО \"Бит Стандарт\"","3702680793","370201001",null,null,"HOT_VS"]
[39,"2591","Ивановская область","26613948","ООО \"Газпром теплоэнерго Иваново\"","3702008951","370201001",null,null,"HOT_VS"]
[40,"2591","Ивановская область","26428292","ООО \"Галтекс\"","3702067805","370201001",null,null,"HOT_VS"]
[41,"2591","Ивановская область","28262498","ООО \"Декоративные культуры\"","3702597930","370201001",null,null,"HOT_VS"]
[42,"2591","Ивановская область","28460952","ООО \"Единая Теплоснабжающая Компания\"","3701047130","370101001",null,null,"HOT_VS"]
[43,"2591","Ивановская область","26611473","ООО \"Жилкомсервис\"","3703043003","370301001",null,null,"HOT_VS"]
[44,"2591","Ивановская область","26524290","ООО \"Ивановская Тепловая Электростанция\"","3702070999","370201001",null,null,"HOT_VS"]
[45,"2591","Ивановская область","27556251","ООО \"Ивановская энергетическая компания\"","3702093192","370201001",null,null,"HOT_VS"]
[46,"2591","Ивановская область","30847071","ООО \"Ивановская энергетическая компания-1\"","3702124764","370201001",null,null,"HOT_VS"]
[47,"2591","Ивановская область","28982037","ООО \"КОММУНАЛЬЩИК\"","3711034309","371101001",null,null,"HOT_VS"]
[48,"2591","Ивановская область","26610551","ООО \"Коммунальщик\"","3711024318","371101001",null,null,"HOT_VS"]
[49,"2591","Ивановская область","30847063","ООО \"Контур-Т\"","3711042927","371101001",null,null,"HOT_VS"]
[50,"2591","Ивановская область","28147607","ООО \"Крайтекс-Ресурс\"","7714821661","370201001",null,null,"HOT_VS"]
[51,"2591","Ивановская область","28454323","ООО \"МИП \"Кинешма\"","3703045850","370301001",null,null,"HOT_VS"]
[52,"2591","Ивановская область","31021922","ООО \"МЭР\"","3711045981","371101001",null,null,"HOT_VS"]
[53,"2591","Ивановская область","26356326","ООО \"Машиностроительный завод\"","3701005965","370101001",null,null,"HOT_VS"]
[54,"2591","Ивановская область","30914295","ООО \"Межрегиональный инжиниринговый центр\"","3702167447","370201001",null,null,"HOT_VS"]
[55,"2591","Ивановская область","30873138","ООО \"МихалевоЭнергоРесурс\"","3711044314","371101001",null,null,"HOT_VS"]
[56,"2591","Ивановская область","26356443","ООО \"Объединенные котельные\"","3726005004","372601001",null,null,"HOT_VS"]
[57,"2591","Ивановская область","30373753","ООО \"Приволжская коммуна\"","3703048040","370301001",null,null,"HOT_VS"]
[58,"2591","Ивановская область","30941194","ООО \"Районнная котельная № 2\"","4401177267","440101001",null,null,"HOT_VS"]
[59,"2591","Ивановская область","28869476","ООО \"Родниковская теплосбытовая компания\"","3701048165","370101001",null,null,"HOT_VS"]
[60,"2591","Ивановская область","26372329","ООО \"Санаторий имени \"Станко\"","3713005769","370301001",null,null,"HOT_VS"]
[61,"2591","Ивановская область","26356327","ООО \"ТДЛ Энерго\"","3702005291","370201001",null,null,"HOT_VS"]
[62,"2591","Ивановская область","30358139","ООО \"ТЕХУГЛЕРОДРЕСУРС\"","3711038984","371101001",null,null,"HOT_VS"]
[63,"2591","Ивановская область","30382130","ООО \"ТСП\"","3704008548","370401001",null,null,"HOT_VS"]
[64,"2591","Ивановская область","31246822","ООО \"ТЭС-Приволжск\"","3705010317","370501001","28-09-2018 00:00:00",null,"HOT_VS"]
[65,"2591","Ивановская область","26546370","ООО \"Тейковская котельная\"","3704561230","370401001",null,null,"HOT_VS"]
[66,"2591","Ивановская область","29645558","ООО \"Тепло-город\"","3720006883","372001001",null,null,"HOT_VS"]
[67,"2591","Ивановская область","26550442","ООО \"Тепло-запад\"","3720004068","372001001",null,null,"HOT_VS"]
[68,"2591","Ивановская область","26825437","ООО \"ТеплоВодаКанализация\"","3704570250","370401001",null,null,"HOT_VS"]
[69,"2591","Ивановская область","28829381","ООО \"ТеплоМаш\"","3701048905","370101001",null,null,"HOT_VS"]
[70,"2591","Ивановская область","31021847","ООО \"ТеплоЭнерго\"","3703020528","370301001","15-03-2017 00:00:00",null,"HOT_VS"]
[71,"2591","Ивановская область","28466296","ООО \"Тепловик\"","3704006290","370401001",null,null,"HOT_VS"]
[72,"2591","Ивановская область","31021896","ООО \"Тепловик\"","3704009855","370401001","14-08-2017 00:00:00",null,"HOT_VS"]
[73,"2591","Ивановская область","28458275","ООО \"Тепловые энергетические системы\"","3702684131","370201001",null,null,"HOT_VS"]
[74,"2591","Ивановская область","26611471","ООО \"ТеплокоммунСервис\"","3703043268","370301001",null,null,"HOT_VS"]
[75,"2591","Ивановская область","26407787","ООО \"Теплосервис\"","3716002519","371601001",null,null,"HOT_VS"]
[76,"2591","Ивановская область","26356351","ООО \"Теплосетевая компания\"","3703040531","370301001",null,null,"HOT_VS"]
[77,"2591","Ивановская область","26647639","ООО \"Теплоснаб\"","3703044462","370301001",null,null,"HOT_VS"]
[78,"2591","Ивановская область","28869463","ООО \"Теплоснаб-Родники\"","3701048535","370101001",null,null,"HOT_VS"]
[79,"2591","Ивановская область","26356397","ООО \"Теплоцентраль-1\"","3713007678","370301001",null,null,"HOT_VS"]
[80,"2591","Ивановская область","31246126","ООО \"ТрансСнаб\"","3703021553","370301001",null,null,"HOT_VS"]
[81,"2591","Ивановская область","26826666","ООО \"УЮТ\"","3705064880","370501001",null,null,"HOT_VS"]
[82,"2591","Ивановская область","27556243","ООО \"Фурманов ТеплоЭнерго\"","3705065041","370501001",null,null,"HOT_VS"]
[83,"2591","Ивановская область","26758019","ООО \"Энергетик\"","3721008266","372101001",null,null,"HOT_VS"]
[84,"2591","Ивановская область","26356343","ООО \"Энергосервисная компания\"","3702542673","370201001",null,null,"HOT_VS"]
[85,"2591","Ивановская область","27556255","ООО \"Юридическое Экспертно-консультационное бюро \"Гарантия\"","3702500497","370201001",null,null,"HOT_VS"]
[86,"2591","Ивановская область","26836275","Северная Дирекция по тепловодоснабжению структурное подразделение Центральной дирекции по тепловодоснабжению - филиала ОАО \"РЖД\"","7708503727","760445028",null,null,"HOT_VS"]
[87,"2591","Ивановская область","26407806","ТНВ \"ООО Агромаркет и компания\"","3704561336","370401001",null,null,"HOT_VS"]
[88,"2591","Ивановская область","28031167","ФГБОУ ВО \"Ивановская пожарно-спасательная академия ГПС МЧС России\"","3702050590","370201001",null,null,"HOT_VS"]
[89,"2591","Ивановская область","30903763","ФГБУ \"ЦЖКУ\" МИНОБОРОНЫ РОССИИ","7729314745","770101001",null,null,"HOT_VS"]
[90,"2591","Ивановская область","26372328","ФГБУЗ МЦ \"Решма\" ФМБА России","3713003497","371301001",null,null,"HOT_VS"]
[91,"2591","Ивановская область","30879843","Филиал \"Владимирский\" ПАО \"Т Плюс\" (на территории Ивановской области)","6315376946","370245001",null,null,"HOT_VS"]
[92,"2591","Ивановская область","28858820","Филиал \"Ивановский\" ПАО \"Т Плюс\"","6315376946","370243001",null,"27-02-2018 00:00:00","HOT_VS"]
[93,"2591","Ивановская область","26356362","Шуйское МУП ОК и ТС","3706001241","370601001",null,null,"HOT_VS"]

{"sheet":"modClassifierValidate","index":40,"n_rows":0,"n_cols":0,"rows_kept":0,"cut":false,"hidden":true,"merged":[]}

{"sheet":"modHyp","index":41,"n_rows":0,"n_cols":0,"rows_kept":0,"cut":false,"hidden":true,"merged":[]}

{"sheet":"modfrmDateChoose","index":42,"n_rows":0,"n_cols":0,"rows_kept":0,"cut":false,"hidden":true,"merged":[]}

{"sheet":"modComm","index":43,"n_rows":0,"n_cols":0,"rows_kept":0,"cut":false,"hidden":true,"merged":[]}

{"sheet":"modThisWorkbook","index":44,"n_rows":0,"n_cols":0,"rows_kept":0,"cut":false,"hidden":true,"merged":[]}

{"sheet":"REESTR_MO","index":45,"n_rows":144,"n_cols":4,"rows_kept":144,"cut":false,"hidden":true,"merged":[]}
["№","МР","МО","МО_ОКТМО"]
[1,"Верхнеландеховский муниципальный район","Верхнеландеховский муниципальный район","24602000"]
[2,"Верхнеландеховский муниципальный район","Верхнеландеховское городское поселение","24602151"]
[3,"Верхнеландеховский муниципальный район","Кромское сельское поселение","24602420"]
[4,"Верхнеландеховский муниципальный район","Мытское сельское поселение","24602427"]
[5,"Верхнеландеховский муниципальный район","Симаковское сельское поселение","24602438"]
[6,"Вичугский муниципальный район","Вичугский муниципальный район","24601000"]
[7,"Вичугский муниципальный район","Каменское городское поселение","24601154"]
[8,"Вичугский муниципальный район","Новописцовское городское поселение","24601157"]
[9,"Вичугский муниципальный район","Октябрьское сельское поселение","24601410"]
[10,"Вичугский муниципальный район","Сошниковское сельское поселение","24601440"]
[11,"Вичугский муниципальный район","Старовичугское городское поселение","24601160"]
[12,"Вичугский муниципальный район","Сунженское сельское поселение","24601446"]
[13,"Гаврилово-Посадский муниципальный район","Гаврилово-Посадский муниципальный район","24603000"]
[14,"Гаврилово-Посадский муниципальный район","Гаврилово-Посадское городское поселение","24603101"]
[15,"Гаврилово-Посадский муниципальный район","Новоселковское сельское поселение","24603428"]
[16,"Гаврилово-Посадский муниципальный район","Осановецкое сельское поселение","24603432"]
[17,"Гаврилово-Посадский муниципальный район","Петровское городское поселение","24603156"]
[18,"Гаврилово-Посадский муниципальный район","Шекшовское сельское поселение","24603440"]
[19,"Городской округ Вичуга","Городской округ Вичуга","24703000"]
[20,"Городской округ Иваново","Городской округ Иваново","24701000"]
[21,"Городской округ Кинешма","Городской округ Кинешма","24705000"]
[22,"Городской округ Кохма","Городской округ Кохма","24706000"]
[23,"Городской округ Тейково","Городской округ Тейково","24707000"]
[24,"Городской округ Шуя","Городской округ Шуя","24711000"]
[25,"Заволжский муниципальный район","Волжское сельское поселение","24605410"]
[26,"Заволжский муниципальный район","Дмитриевское сельское поселение","24605414"]
[27,"Заволжский муниципальный район","Заволжский муниципальный район","24605000"]
[28,"Заволжский муниципальный район","Заволжское городское поселение","24605101"]
[29,"Заволжский муниципальный район","Междуреченское сельское поселенеие","24605445"]
[30,"Заволжский муниципальный район","Сосневское сельское поселение","24605430"]
[31,"Ивановский муниципальный район","Балахонковское сельское поселение","24607456"]
[32,"Ивановский муниципальный район","Беляницкое сельское поселение","24607404"]
[33,"Ивановский муниципальный район","Богданихское сельское поселение","24607440"]
[34,"Ивановский муниципальный район","Богородское сельское поселение","24607412"]
[35,"Ивановский муниципальный район","Ивановский муниципальный район","24607000"]
[36,"Ивановский муниципальный район","Коляновское сельское поселение","24607424"]
[37,"Ивановский муниципальный район","Куликовское сельское поселение","24607460"]
[38,"Ивановский муниципальный район","Новоталицкое сельское поселение","24607448"]
[39,"Ивановский муниципальный район","Озерновское сельское поселение","24607457"]
[40,"Ивановский муниципальный район","Подвязновское сельское поселение","24607458"]
[41,"Ивановский муниципальный район","Тимошихское сельское поселение","24607468"]
[42,"Ивановский муниципальный район","Чернореченское сельское поселение","24607473"]
[43,"Ильинский муниципальный район","Аньковское сельское поселение","24609408"]
[44,"Ильинский муниципальный район","Ивашевское сельское поселение","24609416"]
[45,"Ильинский муниципальный район","Ильинский муниципальный район","24609000"]
[46,"Ильинский муниципальный район","Ильинское городское поселение","24609151"]
[47,"Ильинский муниципальный район","Исаевское сельское поселение","24609428"]
[48,"Ильинский муниципальный район","Щенниковское сельское поселение","24609452"]
[49,"Кинешемский муниципальный район","Батмановское сельское поселение","24611404"]
[50,"Кинешемский муниципальный район","Горковское сельское поселение","24611408"]
[51,"Кинешемский муниципальный район","Кинешемский муниципальный район","24611000"]
[52,"Кинешемский муниципальный район","Ласкарихинское сельское поселение","24611440"]
[53,"Кинешемский муниципальный район","Луговское сельское поселение","24611428"]
[54,"Кинешемский муниципальный район","Наволокское городское поселение","24611104"]
[55,"Кинешемский муниципальный район","Решемское сельское поселение","24611436"]
[56,"Кинешемский муниципальный район","Шилекшинское сельское поселение","24611448"]
[57,"Комсомольский муниципальный район","Комсомольский муниципальный район","24613000"]
[58,"Комсомольский муниципальный район","Комсомольское городское поселение","24613101"]
[59,"Комсомольский муниципальный район","Марковское сельское поселение","24613415"]
[60,"Комсомольский муниципальный район","Новоусадебское сельское поселение","24613424"]
[61,"Комсомольский муниципальный район","Октябрьское сельское поселение","24613430"]
[62,"Комсомольский муниципальный район","Писцовское сельское поселение","24613432"]
[63,"Комсомольский муниципальный район","Подозерское сельское поселение","24613433"]
[64,"Лежневский муниципальный район","Лежневский муниципальный район","24614000"]
[65,"Лежневский муниципальный район","Лежневское городское поселение","24614151"]
[66,"Лежневский муниципальный район","Лежневское сельское поселение","24614430"]
[67,"Лежневский муниципальный район","Новогоркинское сельское поселение","24614435"]
[68,"Лежневский муниципальный район","Сабиновское сельское поселение","24614415"]
[69,"Лежневский муниципальный район","Шилыковское сельское поселение","24614470"]
[70,"Лухский муниципальный район","Благовещенское сельское поселение","24615408"]
[71,"Лухский муниципальный район","Лухский муниципальный район","24615000"]
[72,"Лухский муниципальный район","Лухское городское поселение","24615151"]
[73,"Лухский муниципальный район","Порздневское сельское поселение","24615424"]
[74,"Лухский муниципальный район","Рябовское сельское поселение","24615428"]
[75,"Лухский муниципальный район","Тимирязевское сельское поселение","24615432"]
[76,"Палехский муниципальный район","Майдаковское сельское поселение","24617412"]
[77,"Палехский муниципальный район","Палехский муниципальный район","24617000"]
[78,"Палехский муниципальный район","Палехское городское поселение","24617151"]
[79,"Палехский муниципальный район","Пановское сельское поселение","24617424"]
[80,"Палехский муниципальный район","Раменское сельское поселение","24617436"]
[81,"Пестяковский муниципальный район","Нижнеландеховское сельское поселение","24619444"]
[82,"Пестяковский муниципальный район","Пестяковский муниципальный район","24619000"]
[83,"Пестяковский муниципальный район","Пестяковское городское поселение","24619151"]
[84,"Пестяковский муниципальный район","Пестяковское сельское поселение","24619448"]
[85,"Приволжский муниципальный район","Ингарское сельское поселение","24620416"]
[86,"Приволжский муниципальный район","Новское сельское поселение","24620434"]
[87,"Приволжский муниципальный район","Плесское городское поселение","24620104"]
[88,"Приволжский муниципальный район","Приволжский муниципальный район","24620000"]
[89,"Приволжский муниципальный район","Приволжское городское поселение","24620106"]
[90,"Приволжский муниципальный район","Рождественское сельское поселение","24620440"]
[91,"Пучежский муниципальный район","Затеихинское сельское поселение","24621412"]
[92,"Пучежский муниципальный район","Илья-Высоковское сельское поселение","24621416"]
[93,"Пучежский муниципальный район","Мортковское сельское поселение","24621436"]
[94,"Пучежский муниципальный район","Пучежский муниципальный район","24621000"]
[95,"Пучежский муниципальный район","Пучежское городское поселение","24621101"]
[96,"Пучежский муниципальный район","Сеготское сельское поселение","24621444"]
[97,"Родниковский муниципальный район","Каминское сельское поселение","24623406"]
[98,"Родниковский муниципальный район","Парское сельское поселение","24623444"]
[99,"Родниковский муниципальный район","Родниковский муниципальный район","24623000"]
[100,"Родниковский муниципальный район","Родниковское городское поселение","24623101"]
[101,"Родниковский муниципальный район","Филисовское сельское поселение","24623452"]
[102,"Савинский муниципальный район","Архиповское сельское поселение","24625436"]
[103,"Савинский муниципальный район","Вознесенское сельское поселение","24625404"]
[104,"Савинский муниципальный район","Воскресенское сельское поселение","24625408"]
[105,"Савинский муниципальный район","Горячевское сельское поселение","24625412"]
[106,"Савинский муниципальный район","Савинский муниципальный район","24625000"]
[107,"Савинский муниципальный район","Савинское городское поселение","24625151"]
[108,"Савинский муниципальный район","Савинское сельское поселение","24625432"]
[109,"Тейковский муниципальный район","Большеклочковское сельское поселение","24629408"]
[110,"Тейковский муниципальный район","Крапивновское сельское поселение","24629416"]
[111,"Тейковский муниципальный район","Морозовское сельское поселение","24629420"]
[112,"Тейковский муниципальный район","Нерльское городское поселение","24629154"]
[113,"Тейковский муниципальный район","Новогоряновское сельское поселение","24629430"]
[114,"Тейковский муниципальный район","Новолеушинское сельское поселение","24629444"]
[115,"Тейковский муниципальный район","Тейковский муниципальный район","24629000"]
[116,"Фурмановский муниципальный район","Дуляпинское сельское поселение","24631412"]
[117,"Фурмановский муниципальный район","Иванковское сельское поселение","24631436"]
[118,"Фурмановский муниципальный район","Панинское сельское поселение","24631432"]
[119,"Фурмановский муниципальный район","Фурмановский муниципальный район","24631000"]
[120,"Фурмановский муниципальный район","Фурмановское городское поселение","24631101"]
[121,"Фурмановский муниципальный район","Хромцовское сельское поселение","24631406"]
[122,"Фурмановский муниципальный район","Широковское сельское поселение","24631456"]
[123,"Шуйский муниципальный район","Афанасьевское сельское поселение","24633408"]
[124,"Шуйский муниципальный район","Васильевское сельское поселение","24633412"]
[125,"Шуйский муниципальный район","Введенское сельское поселение","24633472"]
[126,"Шуйский муниципальный район","Китовское сельское поселение","24633440"]
[127,"Шуйский муниципальный район","Колобовское городское поселение","24633154"]
[128,"Шуйский муниципальный район","Остаповское сельское поселение","24633432"]
[129,"Шуйский муниципальный район","Перемиловское сельское поселение","24633456"]
[130,"Шуйский муниципальный район","Семейкинское сельское поселение","24633460"]
[131,"Шуйский муниципальный район","Шуйский муниципальный район","24633000"]
[132,"Южский муниципальный район","Мугреево-Никольское сельское поселение","24635407"]
[133,"Южский муниципальный район","Новоклязьминское сельское поселени","24635416"]
[134,"Южский муниципальный район","Талицко-Мугреевское сельское поселение","24635420"]
[135,"Южский муниципальный район","Холуйское сельское поселение","24635406"]
[136,"Южский муниципальный район","Хотимльское сельское поселение","24635424"]
[137,"Южский муниципальный район","Южский муниципальный район","24635000"]
[138,"Южский муниципальный район","Южское городское поселение","24635101"]
[139,"Юрьевецкий муниципальный район","Ёлнатское сельское поселение","24637404"]
[140,"Юрьевецкий муниципальный район","Михайловское сельское поселение","24637424"]
[141,"Юрьевецкий муниципальный район","Соболевское сельское поселение","24637432"]
[142,"Юрьевецкий муниципальный район","Юрьевецкий муниципальный район","24637000"]
[143,"Юрьевецкий муниципальный район","Юрьевецкое городское поселение","24637101"]

{"sheet":"REESTR_MO_FILTER","index":46,"n_rows":0,"n_cols":0,"rows_kept":0,"cut":false,"hidden":true,"merged":[]}

{"sheet":"modfrmReestrMR","index":47,"n_rows":0,"n_cols":0,"rows_kept":0,"cut":false,"hidden":true,"merged":[]}

{"sheet":"modServiceModule","index":48,"n_rows":0,"n_cols":0,"rows_kept":0,"cut":false,"hidden":true,"merged":[]}

{"sheet":"modfrmCheckUpdates","index":49,"n_rows":0,"n_cols":0,"rows_kept":0,"cut":false,"hidden":true,"merged":[]}

{"sheet":"REESTR_DS","index":50,"n_rows":3,"n_cols":2,"rows_kept":3,"cut":false,"hidden":true,"merged":[]}
[]
[]
[null,"Городской округ Иваново, Городской округ Иваново (24701000);"]

{"sheet":"REESTR_CHS","index":51,"n_rows":0,"n_cols":0,"rows_kept":0,"cut":false,"hidden":true,"merged":[]}

{"sheet":"REESTR_LINK","index":52,"n_rows":3,"n_cols":3,"rows_kept":3,"cut":false,"hidden":true,"merged":[]}
["ID","LINK_NAME","REGION"]
[4189678,"https://portal.eias.ru/Portal/DownloadPage.aspx?type=12&guid=????????-????-????-????-????????????","ALL"]
[4190415,"https://eias.fstrf.ru/disclo/get_file?p_guid=????????-????-????-????-????????????","ALL"]